Workbook

Sheet MENU
A6: C1
A7: =LEFT(C7,4) -> 
A10: C5. | C10: C5. ELECTORES POR PAÍS DE ORIGEN
C25: Observaciones al
C26: correo electrónico: dejecutiva@tse.go.cr
A27: =LEFT(C27,4) -> 

Sheet 1
A1: CUADRO 1
A2: COSTA RICA: TOTAL Y VARIACIÓN DEL ELECTORADO
A3: ENTRE DICIEMBRE 2010 Y DICIEMBRE 2011
A4: SEGÚN PROVINCIA Y SEXO
A6: Provincia y sexo | B6: Padrón Nacional Electoral | E6: Variación
B7: Diciembre 2010 | C7: Diciembre 2011 | E7: Absoluto | F7: Porcentaje
A9: Costa Rica | B9: 2866217 | C9: 2931888 | E9: 65671 | F9: 2.291208237
A10: Hombres | B10: 1430857 | C10: 1466205 | E10: 35348 | F10: 2.470407595
A11: Mujeres | B11: 1435360 | C11: 1465683 | E11: 30323 | F11: 2.112571062
A13: San José | B13: 1016678 | C13: 1028933 | E13: 12255 | F13: 1.205396399
A14: Hombres | B14: 495505 | C14: 502616 | E14: 7111 | F14: 1.435101563
A15: Mujeres | B15: 521173 | C15: 526317 | E15: 5144 | F15: 0.9870043153
A17: Alajuela | B17: 533285 | C17: 547166 | E17: 13881 | F17: 2.60292339
A18: Hombres | B18: 269128 | C18: 276576 | E18: 7448 | F18: 2.767456378
A19: Mujeres | B19: 264157 | C19: 270590 | E19: 6433 | F19: 2.435294162
A21: Cartago | B21: 334473 | C21: 342758 | E21: 8285 | F21: 2.477031031
A22: Hombres | B22: 167036 | C22: 171387 | E22: 4351 | F22: 2.604827702
A23: Mujeres | B23: 167437 | C23: 171371 | E23: 3934 | F23: 2.349540424
A25: Heredia | B25: 283771 | C25: 291528 | E25: 7757 | F25: 2.733542187
A26: Hombres | B26: 139912 | C26: 143966 | E26: 4054 | F26: 2.897535594
A27: Mujeres | B27: 143859 | C27: 147562 | E27: 3703 | F27: 2.5740482
A29: Guanacaste | B29: 203614 | C29: 209766 | E29: 6152 | F29: 3.021403243
A30: Hombres | B30: 103249 | C30: 106532 | E30: 3283 | F30: 3.179691813
A31: Mujeres | B31: 100365 | C31: 103234 | E31: 2869 | F31: 2.858566233
A33: Puntarenas | B33: 265197 | C33: 272906 | E33: 7709 | F33: 2.906895629
A34: Hombres | B34: 136989 | C34: 141114 | E34: 4125 | F34: 3.01119068
A35: Mujeres | B35: 128208 | C35: 131792 | E35: 3584 | F35: 2.795457382
A37: Limón | B37: 228491 | C37: 236098 | E37: 7607 | F37: 3.329233974
A38: Hombres | B38: 118700 | C38: 122698 | E38: 3998 | F38: 3.368155013
A39: Mujeres | B39: 109791 | C39: 113400 | E39: 3609 | F39: 3.287154685
A41: En el extranjero 1/ | B41: 708 | C41: 2733 | E41: 2025 | F41: 286.0169492
A42: Hombres | B42: 338 | C42: 1316 | E42: 978 | F42: 289.3491124
A43: Mujeres | B43: 370 | C43: 1417 | E43: 1047 | F43: 282.972973
A46: 1/ Costarricenses inscritos(as) que pueden ejercer el voto en extranjero para designar los puestos de Presidencia y Vicepresidencias, así como en consultas populares de orden nacional, según el artículo 187 del Código Electoral.
A48: Fuente: Sección Padrón Electoral del Tribunal Supremo de Elecciones.

Sheet 2
A1: CUADRO 2
A2: COSTA RICA: ELECTORADO EN EL PADRÓN PARA LAS ELECCIONES DE
A3: DICIEMBRE 2010 Y EN EL PADRÓN AL 31 DE DICIEMBRE 2011
A4: POR SEXO, SEGÚN PROVINCIA Y CANTÓN
A6: Provincia y cantón | B6: Padrón Nacional Electoral
B7: Diciembre 2010 | F7: Diciembre 2011
B8: Total | C8: Hombres | D8: Mujeres | F8: Total | G8: Hombres | H8: Mujeres
A9: Costa Rica | B9: 2866217 | C9: 1430857 | D9: 1435360 | E9: 0 | F9: 2931888 | G9: 1466205 | H9: 1465683
A10: San José | B10: 1016678 | C10: 495505 | D10: 521173 | E10: 0 | F10: 1028933 | G10: 502616 | H10: 526317
A11: Alajuela | B11: 533285 | C11: 269128 | D11: 264157 | E11: 0 | F11: 547166 | G11: 276576 | H11: 270590
A12: Cartago | B12: 334473 | C12: 167036 | D12: 167437 | E12: 0 | F12: 342758 | G12: 171387 | H12: 171371
A13: Heredia | B13: 283771 | C13: 139912 | D13: 143859 | E13: 0 | F13: 291528 | G13: 143966 | H13: 147562
A14: Guanacaste | B14: 203614 | C14: 103249 | D14: 100365 | E14: 0 | F14: 209766 | G14: 106532 | H14: 103234
A15: Puntarenas | B15: 265197 | C15: 136989 | D15: 128208 | E15: 0 | F15: 272906 | G15: 141114 | H15: 131792
A16: Limón | B16: 228491 | C16: 118700 | D16: 109791 | E16: 0 | F16: 236098 | G16: 122698 | H16: 113400
A17: En el extranjero 1/ | B17: 708 | C17: 338 | D17: 370 | F17: 2733 | G17: 1316 | H17: 1417
A18: San José | B18: 1016678 | C18: 495505 | D18: 521173 | F18: 1028933 | G18: 502616 | H18: 526317
A19: San José | B19: 225542 | C19: 108215 | D19: 117327 | F19: 224858 | G19: 108128 | H19: 116730
A20: Escazú | B20: 40526 | C20: 19736 | D20: 20790 | F20: 41381 | G20: 20261 | H20: 21120
A21: Desamparados | B21: 144901 | C21: 71011 | D21: 73890 | F21: 147126 | G21: 72321 | H21: 74805
A22: Puriscal | B22: 24663 | C22: 12429 | D22: 12234 | F22: 25141 | G22: 12716 | H22: 12425
A23: Tarrazú | B23: 10616 | C23: 5449 | D23: 5167 | F23: 10897 | G23: 5572 | H23: 5325
A24: Aserrí | B24: 37616 | C24: 18801 | D24: 18815 | F24: 38533 | G24: 19287 | H24: 19246
A25: Mora | B25: 17413 | C25: 8641 | D25: 8772 | F25: 18005 | G25: 8938 | H25: 9067
A26: Goicoechea | B26: 85797 | C26: 41130 | D26: 44667 | F26: 86036 | G26: 41268 | H26: 44768
A27: Santa Ana | B27: 27941 | C27: 13729 | D27: 14212 | F27: 29058 | G27: 14301 | H27: 14757
A28: Alajuelita | B28: 44907 | C28: 22315 | D28: 22592 | F28: 45897 | G28: 22745 | H28: 23152
A29: Vázquez de Coronado | B29: 45831 | C29: 22200 | D29: 23631 | F29: 47325 | G29: 22947 | H29: 24378
A30: Acosta | B30: 14354 | C30: 7482 | D30: 6872 | F30: 14608 | G30: 7639 | H30: 6969
A31: Tibás | B31: 55315 | C31: 26064 | D31: 29251 | F31: 54831 | G31: 25931 | H31: 28900
A32: Moravia | B32: 40392 | C32: 19306 | D32: 21086 | F32: 40973 | G32: 19681 | H32: 21292
A33: Montes de Oca | B33: 41135 | C33: 19190 | D33: 21945 | F33: 40948 | G33: 19214 | H33: 21734
A34: Turrubares | B34: 4187 | C34: 2195 | D34: 1992 | F34: 4216 | G34: 2218 | H34: 1998
A35: Dota | B35: 4836 | C35: 2437 | D35: 2399 | F35: 4900 | G35: 2454 | H35: 2446
A36: Curridabat | B36: 44286 | C36: 21313 | D36: 22973 | F36: 44874 | G36: 21622 | H36: 23252
A37: Pérez Zeledón | B37: 98271 | C37: 49699 | D37: 48572 | F37: 101002 | G37: 51086 | H37: 49916
A38: León Cortés | B38: 8149 | C38: 4163 | D38: 3986 | F38: 8324 | G38: 4287 | H38: 4037
A39: Alajuela | B39: 533285 | C39: 269128 | D39: 264157 | F39: 547166 | G39: 276576 | H39: 270590
A40: Alajuela | B40: 173149 | C40: 87161 | D40: 85988 | F40: 176582 | G40: 88861 | H40: 87721
A41: San Ramón | B41: 53851 | C41: 26770 | D41: 27081 | F41: 55072 | G41: 27465 | H41: 27607
A42: Grecia | B42: 50974 | C42: 25480 | D42: 25494 | F42: 52362 | G42: 26258 | H42: 26104
A43: San Mateo | B43: 3822 | C43: 1984 | D43: 1838 | F43: 3840 | G43: 2009 | H43: 1831
A44: Atenas | B44: 17658 | C44: 8873 | D44: 8785 | F44: 17972 | G44: 9073 | H44: 8899
A45: Naranjo | B45: 28029 | C45: 13921 | D45: 14108 | F45: 28605 | G45: 14205 | H45: 14400
A46: Palmares | B46: 25315 | C46: 12541 | D46: 12774 | F46: 25898 | G46: 12849 | H46: 13049
A47: Poás | B47: 18233 | C47: 9174 | D47: 9059 | F47: 18751 | G47: 9462 | H47: 9289
A48: Orotina | B48: 12953 | C48: 6479 | D48: 6474 | F48: 13399 | G48: 6703 | H48: 6696
A49: San Carlos | B49: 88519 | C49: 45250 | D49: 43269 | F49: 91689 | G49: 46988 | H49: 44701
A50: Zarcero | B50: 7973 | C50: 3999 | D50: 3974 | F50: 8120 | G50: 4082 | H50: 4038
A51: Valverde Vega | B51: 12819 | C51: 6382 | D51: 6437 | F51: 13068 | G51: 6524 | H51: 6544
A52: Upala | B52: 21797 | C52: 11432 | D52: 10365 | F52: 22793 | G52: 11953 | H52: 10840
A53: Los Chiles | B53: 9243 | C53: 4991 | D53: 4252 | F53: 9677 | G53: 5237 | H53: 4440
A54: Guatuso | B54: 8950 | C54: 4691 | D54: 4259 | F54: 9338 | G54: 4907 | H54: 4431
A55: Cartago | B55: 334473 | C55: 167036 | D55: 167437 | F55: 342758 | G55: 171387 | H55: 171371
A56: Cartago | B56: 106013 | C56: 52424 | D56: 53589 | F56: 108356 | G56: 53712 | H56: 54644
A57: Paraíso | B57: 39836 | C57: 19941 | D57: 19895 | F57: 40926 | G57: 20499 | H57: 20427
A58: La Unión | B58: 59152 | C58: 29511 | D58: 29641 | F58: 61000 | G58: 30478 | H58: 30522
A59: Jiménez | B59: 10600 | C59: 5498 | D59: 5102 | F59: 10788 | G59: 5594 | H59: 5194
A60: Turrialba | B60: 51904 | C60: 26079 | D60: 25825 | F60: 52649 | G60: 26499 | H60: 26150
A61: Alvarado | B61: 8697 | C61: 4396 | D61: 4301 | F61: 8908 | G61: 4528 | H61: 4380
A62: Oreamuno | B62: 30700 | C62: 15159 | D62: 15541 | F62: 31616 | G62: 15576 | H62: 16040
A63: El Guarco | B63: 27571 | C63: 14028 | D63: 13543 | F63: 28515 | G63: 14501 | H63: 14014
A64: Heredia | B64: 283771 | C64: 139912 | D64: 143859 | F64: 291528 | G64: 143966 | H64: 147562
A65: Heredia | B65: 85356 | C65: 40946 | D65: 44410 | F65: 86943 | G65: 41711 | H65: 45232
A66: Barva | B66: 27552 | C66: 13533 | D66: 14019 | F66: 28414 | G66: 13957 | H66: 14457
A67: Santo Domingo | B67: 30722 | C67: 15184 | D67: 15538 | F67: 31358 | G67: 15516 | H67: 15842
A68: Santa Bárbara | B68: 22788 | C68: 11356 | D68: 11432 | F68: 23454 | G68: 11718 | H68: 11736
A69: San Rafael | B69: 29538 | C69: 14634 | D69: 14904 | F69: 30397 | G69: 15142 | H69: 15255
A70: San Isidro | B70: 13112 | C70: 6576 | D70: 6536 | F70: 13627 | G70: 6834 | H70: 6793
A71: Belén | B71: 15982 | C71: 7880 | D71: 8102 | F71: 16356 | G71: 8101 | H71: 8255
A72: Flores | B72: 13761 | C72: 6731 | D72: 7030 | F72: 14288 | G72: 7003 | H72: 7285
A73: San Pablo | B73: 18343 | C73: 8855 | D73: 9488 | F73: 18974 | G73: 9202 | H73: 9772
A74: Sarapiquí | B74: 26617 | C74: 14217 | D74: 12400 | F74: 27717 | G74: 14782 | H74: 12935
A75: Guanacaste | B75: 203614 | C75: 103249 | D75: 100365 | F75: 209766 | G75: 106532 | H75: 103234
A76: Liberia | B76: 37797 | C76: 18911 | D76: 18886 | F76: 39009 | G76: 19609 | H76: 19400
A77: Nicoya | B77: 35669 | C77: 18012 | D77: 17657 | F77: 36452 | G77: 18387 | H77: 18065
A78: Santa Cruz | B78: 34567 | C78: 17669 | D78: 16898 | F78: 35747 | G78: 18320 | H78: 17427
A79: Bagaces | B79: 11245 | C79: 5717 | D79: 5528 | F79: 11823 | G79: 6023 | H79: 5800
A80: Carrillo | B80: 20050 | C80: 10219 | D80: 9831 | F80: 20840 | G80: 10639 | H80: 10201
A81: Cañas | B81: 17344 | C81: 8696 | D81: 8648 | F81: 17683 | G81: 8889 | H81: 8794
A82: Abangares | B82: 11763 | C82: 6040 | D82: 5723 | F82: 12081 | G82: 6182 | H82: 5899
A83: Tilarán | B83: 13309 | C83: 6702 | D83: 6607 | F83: 13493 | G83: 6815 | H83: 6678
A84: Nandayure | B84: 7489 | C84: 3909 | D84: 3580 | F84: 7704 | G84: 4023 | H84: 3681
A85: La Cruz | B85: 9262 | C85: 4732 | D85: 4530 | F85: 9717 | G85: 4944 | H85: 4773
A86: Hojancha | B86: 5119 | C86: 2642 | D86: 2477 | F86: 5217 | G86: 2701 | H86: 2516
A87: Puntarenas | B87: 265197 | C87: 136989 | D87: 128208 | F87: 272906 | G87: 141114 | H87: 131792
A88: Puntarenas | B88: 77238 | C88: 39656 | D88: 37582 | F88: 79149 | G88: 40757 | H88: 38392
A89: Esparza | B89: 18825 | C89: 9370 | D89: 9455 | F89: 19479 | G89: 9725 | H89: 9754
A90: Buenos Aires | B90: 27392 | C90: 14450 | D90: 12942 | F90: 28262 | G90: 14943 | H90: 13319
A91: Montes de Oro | B91: 8750 | C91: 4337 | D91: 4413 | F91: 8986 | G91: 4488 | H91: 4498
A92: Osa | B92: 18664 | C92: 9964 | D92: 8700 | F92: 19192 | G92: 10224 | H92: 8968
A93: Aguirre | B93: 16693 | C93: 8909 | D93: 7784 | F93: 17139 | G93: 9114 | H93: 8025
A94: Golfito | B94: 25019 | C94: 13054 | D94: 11965 | F94: 25601 | G94: 13357 | H94: 12244
A95: Coto Brus | B95: 26188 | C95: 13291 | D95: 12897 | F95: 26706 | G95: 13574 | H95: 13132
A96: Parrita | B96: 9776 | C96: 5118 | D96: 4658 | F96: 10158 | G96: 5300 | H96: 4858
A97: Corredores | B97: 27936 | C97: 14168 | D97: 13768 | F97: 29185 | G97: 14795 | H97: 14390
A98: Garabito | B98: 8716 | C98: 4672 | D98: 4044 | F98: 9049 | G98: 4837 | H98: 4212
A99: Limón | B99: 228491 | C99: 118700 | D99: 109791 | F99: 236098 | G99: 122698 | H99: 113400
A100: Limón | B100: 61603 | C100: 31186 | D100: 30417 | F100: 62535 | G100: 31654 | H100: 30881
A101: Pococí | B101: 75016 | C101: 39302 | D101: 35714 | F101: 78333 | G101: 41051 | H101: 37282
A102: Siquirres | B102: 34544 | C102: 18170 | D102: 16374 | F102: 35613 | G102: 18765 | H102: 16848
A103: Talamanca | B103: 15458 | C103: 8212 | D103: 7246 | F103: 16246 | G103: 8636 | H103: 7610
A104: Matina | B104: 18313 | C104: 9640 | D104: 8673 | F104: 18829 | G104: 9913 | H104: 8916
A105: Guácimo | B105: 23557 | C105: 12190 | D105: 11367 | F105: 24542 | G105: 12679 | H105: 11863
A106: En el extranjero 1/ | B106: 708 | C106: 338 | D106: 370 | F106: 2733 | G106: 1316 | H106: 1417
A109: 1/ Costarricenses inscritos(as) que pueden ejercer el voto en extranjero para designar los puestos de Presidencia y Vicepresidencias, así como en consultas populares de orden nacional, según el artículo 187 del Código Electoral.
A110: Fuente: Sección Padrón Electoral del Tribunal Supremo de Elecciones.

Sheet 3
A1: CUADRO 3
A2: COSTA RICA: ELECTORADO POR PROVINCIA, SEGÚN SEXO Y
A3: GRUPO DE EDAD 1/, AL 31 DE DICIEMBRE DE 2011
A5: Sexo y grupo de edad | B5: Total | C5: San José | D5: Alajuela | E5: Cartago | F5: Heredia | G5: Guanacaste | H5: Puntarenas | I5: Limón | J5: En el extranjero 2/
A7: Costa Rica | B7: 2931888 | C7: 1028933 | D7: 547166 | E7: 342758 | F7: 291528 | G7: 209766 | H7: 272906 | I7: 236098 | J7: 2733
A8: 16 - 19 | B8: 152652 | C8: 48462 | D8: 29586 | E8: 18159 | F8: 14450 | G8: 11557 | H8: 15562 | I8: 14749 | J8: 127
A9: 20 - 24 | B9: 394156 | C9: 131256 | D9: 76214 | E9: 47377 | F9: 36910 | G9: 28718 | H9: 38481 | I9: 34928 | J9: 272
A10: 25 - 29 | B10: 376082 | C10: 129441 | D10: 70453 | E10: 43495 | F10: 36973 | G10: 26785 | H10: 36343 | I10: 32294 | J10: 298
A11: 30 - 34 | B11: 326272 | C11: 114886 | D11: 59150 | E11: 38348 | F11: 34072 | G11: 23154 | H11: 30246 | I11: 25990 | J11: 426
A12: 35 - 39 | B12: 272253 | C12: 92874 | D12: 49411 | E12: 32876 | F12: 28108 | G12: 19444 | H12: 25979 | I12: 23206 | J12: 355
A13: 40 - 44 | B13: 270726 | C13: 91827 | D13: 50928 | E13: 32925 | F13: 27203 | G13: 19112 | H13: 25777 | I13: 22636 | J13: 318
A14: 45 - 49 | B14: 270691 | C14: 94726 | D14: 51573 | E14: 32261 | F14: 27228 | G14: 19038 | H14: 24574 | I14: 21000 | J14: 291
A15: 50 - 54 | B15: 237590 | C15: 85926 | D15: 44630 | E15: 27476 | F15: 24184 | G15: 16263 | H15: 20965 | I15: 17919 | J15: 227
A16: 55 - 59 | B16: 189340 | C16: 70247 | D16: 34028 | E16: 21289 | F16: 19627 | G16: 13035 | H16: 16646 | I16: 14289 | J16: 179
A17: 60 - 64 | B17: 138440 | C17: 52761 | D17: 24843 | E17: 14973 | F17: 13949 | G17: 9718 | H17: 12036 | I17: 10061 | J17: 99
A18: 65 - 69 | B18: 102618 | C18: 38925 | D18: 19223 | E18: 11554 | F18: 9914 | G18: 7259 | H18: 8902 | I18: 6776 | J18: 65
A19: 70 - 74 | B19: 76445 | C19: 28442 | D19: 14474 | E19: 8634 | F19: 7184 | G19: 5805 | H19: 6867 | I19: 5008 | J19: 31
A20: 75 - 79 | B20: 55137 | C20: 21463 | D20: 10057 | E20: 6131 | F20: 5111 | G20: 4113 | H20: 4837 | I20: 3404 | J20: 21
A21: 80 - 84 | B21: 38496 | C21: 15416 | D21: 6860 | E21: 4216 | F21: 3676 | G21: 3005 | H21: 3195 | I21: 2116 | J21: 12
A22: 85 y más | B22: 30990 | C22: 12281 | D22: 5736 | E22: 3044 | F22: 2939 | G22: 2760 | H22: 2496 | I22: 1722 | J22: 12
A24: Hombres | B24: 1466205 | C24: 502616 | D24: 276576 | E24: 171387 | F24: 143966 | G24: 106532 | H24: 141114 | I24: 122698 | J24: 1316
A25: 16 - 19 | B25: 77805 | C25: 24496 | D25: 15283 | E25: 9231 | F25: 7329 | G25: 5898 | H25: 7935 | I25: 7583 | J25: 50
A26: 20 - 24 | B26: 201729 | C26: 66749 | D26: 39336 | E26: 24445 | F26: 18868 | G26: 14620 | H26: 19789 | I26: 17782 | J26: 140
A27: 25 - 29 | B27: 191599 | C27: 65597 | D27: 36273 | E27: 22206 | F27: 18713 | G27: 13737 | H27: 18502 | I27: 16422 | J27: 149
A28: 30 - 34 | B28: 164910 | C28: 57987 | D28: 30303 | E28: 19342 | F28: 17089 | G28: 11640 | H28: 15319 | I28: 13014 | J28: 216
A29: 35 - 39 | B29: 137380 | C29: 46707 | D29: 24818 | E29: 16431 | F29: 14134 | G29: 9808 | H29: 13356 | I29: 11954 | J29: 172
A30: 40 - 44 | B30: 135867 | C30: 45542 | D30: 25621 | E30: 16351 | F30: 13449 | G30: 9753 | H30: 13359 | I30: 11641 | J30: 151
A31: 45 - 49 | B31: 134917 | C31: 46347 | D31: 25740 | E31: 16088 | F31: 13287 | G31: 9646 | H31: 12706 | I31: 10955 | J31: 148
A32: 50 - 54 | B32: 118238 | C32: 41204 | D32: 22481 | E32: 13656 | F32: 11946 | G32: 8342 | H32: 10972 | I32: 9536 | J32: 101
A33: 55 - 59 | B33: 93294 | C33: 33117 | D33: 17147 | E33: 10408 | F33: 9437 | G33: 6650 | H33: 8701 | I33: 7753 | J33: 81
A34: 60 - 64 | B34: 67707 | C34: 24421 | D34: 12379 | E34: 7268 | F34: 6673 | G34: 4901 | H34: 6407 | I34: 5607 | J34: 51
A35: 65 - 69 | B35: 49856 | C35: 17826 | D35: 9536 | E35: 5666 | F35: 4668 | G35: 3657 | H35: 4731 | I35: 3747 | J35: 25
A36: 70 - 74 | B36: 36864 | C36: 12743 | D36: 7056 | E36: 4180 | F36: 3356 | G36: 3017 | H36: 3678 | I36: 2821 | J36: 13
A37: 75 - 79 | B37: 25572 | C37: 9072 | D37: 4848 | E37: 2864 | F37: 2244 | G37: 2066 | H37: 2590 | I37: 1879 | J37: 9
A38: 80 - 84 | B38: 17474 | C38: 6325 | D38: 3168 | E38: 2023 | F38: 1595 | G38: 1503 | H38: 1726 | I38: 1128 | J38: 6
A39: 85 y más | B39: 12993 | C39: 4483 | D39: 2587 | E39: 1228 | F39: 1178 | G39: 1294 | H39: 1343 | I39: 876 | J39: 4
A41: Mujeres | B41: 1465683 | C41: 526317 | D41: 270590 | E41: 171371 | F41: 147562 | G41: 103234 | H41: 131792 | I41: 113400 | J41: 1417
A42: 16 - 19 | B42: 74847 | C42: 23966 | D42: 14303 | E42: 8928 | F42: 7121 | G42: 5659 | H42: 7627 | I42: 7166 | J42: 77
A43: 20 - 24 | B43: 192427 | C43: 64507 | D43: 36878 | E43: 22932 | F43: 18042 | G43: 14098 | H43: 18692 | I43: 17146 | J43: 132
A44: 25 - 29 | B44: 184483 | C44: 63844 | D44: 34180 | E44: 21289 | F44: 18260 | G44: 13048 | H44: 17841 | I44: 15872 | J44: 149
A45: 30 - 34 | B45: 161362 | C45: 56899 | D45: 28847 | E45: 19006 | F45: 16983 | G45: 11514 | H45: 14927 | I45: 12976 | J45: 210
A46: 35 - 39 | B46: 134873 | C46: 46167 | D46: 24593 | E46: 16445 | F46: 13974 | G46: 9636 | H46: 12623 | I46: 11252 | J46: 183
A47: 40 - 44 | B47: 134859 | C47: 46285 | D47: 25307 | E47: 16574 | F47: 13754 | G47: 9359 | H47: 12418 | I47: 10995 | J47: 167
A48: 45 - 49 | B48: 135774 | C48: 48379 | D48: 25833 | E48: 16173 | F48: 13941 | G48: 9392 | H48: 11868 | I48: 10045 | J48: 143
A49: 50 - 54 | B49: 119352 | C49: 44722 | D49: 22149 | E49: 13820 | F49: 12238 | G49: 7921 | H49: 9993 | I49: 8383 | J49: 126
A50: 55 - 59 | B50: 96046 | C50: 37130 | D50: 16881 | E50: 10881 | F50: 10190 | G50: 6385 | H50: 7945 | I50: 6536 | J50: 98
A51: 60 - 64 | B51: 70733 | C51: 28340 | D51: 12464 | E51: 7705 | F51: 7276 | G51: 4817 | H51: 5629 | I51: 4454 | J51: 48
A52: 65 - 69 | B52: 52762 | C52: 21099 | D52: 9687 | E52: 5888 | F52: 5246 | G52: 3602 | H52: 4171 | I52: 3029 | J52: 40
A53: 70 - 74 | B53: 39581 | C53: 15699 | D53: 7418 | E53: 4454 | F53: 3828 | G53: 2788 | H53: 3189 | I53: 2187 | J53: 18
A54: 75 - 79 | B54: 29565 | C54: 12391 | D54: 5209 | E54: 3267 | F54: 2867 | G54: 2047 | H54: 2247 | I54: 1525 | J54: 12
A55: 80 - 84 | B55: 21022 | C55: 9091 | D55: 3692 | E55: 2193 | F55: 2081 | G55: 1502 | H55: 1469 | I55: 988 | J55: 6
A56: 85 y más | B56: 17997 | C56: 7798 | D56: 3149 | E56: 1816 | F56: 1761 | G56: 1466 | H56: 1153 | I56: 846 | J56: 8
A59: 1/ Incluye las personas menores que tramitaron su cédula y cumplirán 18 años de edad a la fecha de la próxima elección de Presidente y Vicepresidentes de la República, según el artículo 76 de la Ley 3504: "Ley Orgánica del Tribunal Supremo de Elecciones y del Registro Civil".
A60: 2/ Costarricenses inscritos(as) que pueden ejercer el voto en extranjero para designar los puestos de Presidencia y Vicepresidencias, así como en consultas populares de orden nacional, según el artículo 187 del Código Electoral.
A61: Fuente: Sección Padrón Electoral del Tribunal Supremo de Elecciones.

Sheet G1
I2: GRÁFICO 1
A3: DISTRIBUCIÓN DEL TOTAL DE ELECTORES POR SEXO Y GRUPOS QUINQUENALES DE EDAD, SETIEMBRE DE 2011 | I3: COSTA RICA: PORCENTAJE DEL ELECTORADO, POR SEXO Y GRUPO DE EDAD
I4: AL 31 DE DICIEMBRE DE 2011
A6: GRUPOS DE EDAD | B6: ELECTORES | F6: PORCENTAJE
B7: Total | C7: Hombres | D7: Mujeres | F7: Hombres | G7: Mujeres
B9: =SUM(B11:B25) -> 2931888 | C9: =SUM(C11:C25) -> 1466205 | D9: =SUM(D11:D25) -> 1465683
A11: Menos de 20 | B11: =SUM(C11:D11) -> 152652 | C11: ='3'!B25 -> 77805 | D11: ='3'!B42 -> 74847 | F11: =(C11/($C$9))*-100 -> -5.306556723 | G11: =(D11/($C$9))*100 -> 5.104811401
A12: 20 a 24 | B12: =SUM(C12:D12) -> 394156 | C12: ='3'!B26 -> 201729 | D12: ='3'!B43 -> 192427 | F12: =(C12/($C$9))*-100 -> -13.75858083 | G12: =(D12/($C$9))*100 -> 13.12415385
A13: 25 a 29 | B13: 376082 | C13: ='3'!B27 -> 191599 | D13: ='3'!B44 -> 184483 | F13: =(C13/($C$9))*-100 -> -13.06768153 | G13: 12.58234694
A14: 30 a 34 | B14: 326272 | C14: ='3'!B28 -> 164910 | D14: ='3'!B45 -> 161362 | F14: -11.24740401 | G14: 11.00541875
A15: 35 a 39 | B15: 272253 | C15: ='3'!B29 -> 137380 | D15: ='3'!B46 -> 134873 | F15: -9.369767529 | G15: 9.198781889
A16: 40 a 44 | B16: 270726 | C16: ='3'!B30 -> 135867 | D16: ='3'!B47 -> 134859 | F16: -9.266575956 | G16: 9.197827043
A17: 45 a 49 | B17: 270691 | C17: ='3'!B31 -> 134917 | D17: ='3'!B48 -> 135774 | F17: -9.201782834 | G17: 9.260233051
A18: 50 a 54 | B18: 237590 | C18: ='3'!B32 -> 118238 | D18: ='3'!B49 -> 119352 | F18: -8.064220215 | G18: 8.140198676
A19: 55 a 59 | B19: 189340 | C19: ='3'!B33 -> 93294 | D19: ='3'!B50 -> 96046 | F19: -6.362957431 | G19: 6.550652876
A20: 60 a 64 | B20: 138440 | C20: ='3'!B34 -> 67707 | D20: ='3'!B51 -> 70733 | F20: -4.617839934 | G20: 4.824223079
A21: 65 a 69 | B21: 102618 | C21: ='3'!B35 -> 49856 | D21: ='3'!B52 -> 52762 | F21: -3.400343063 | G21: 3.598541814
A22: 70 a 74 | B22: 76445 | C22: ='3'!B36 -> 36864 | D22: ='3'!B53 -> 39581 | F22: -2.514245962 | G22: 2.699554292
A23: 75 a 79 | B23: 55137 | C23: ='3'!B37 -> 25572 | D23: ='3'!B54 -> 29565 | F23: -1.744094448 | G23: 2.016430172
A24: 80 a 84 | B24: 38496 | C24: ='3'!B38 -> 17474 | D24: ='3'!B55 -> 21022 | F24: -1.191784232 | G24: 1.433769493
A25: 85 y más | B25: 30990 | C25: ='3'!B39 -> 12993 | D25: ='3'!B56 -> 17997 | F25: -0.8861653043 | G25: 1.227454551
A28: Al pasar a imprenta y web, se debe pegar como valores para
A29: romper el vinculo con la tabla de datos
I31: Fuente: Cuadro 3.

Sheet 4
A1: CUADRO 4
A2: ELECTORADO EN EL PADRÓN INSCRITO EN EL EXTRANJERO1/
A3: POR SEXO, SEGÚN CONTINENTE Y PAÍS
A4: AL 31 DE DICIEMBRE 2011
A6: Continente y país | B6: Total | D6: Hombres | F6: Mujeres
B7: Absoluto | C7: % | D7: Absoluto | E7: % | F7: Absoluto | G7: %
A9: Total | B9: 2733 | C9: 100 | D9: 1316 | E9: 100 | F9: 1417 | G9: 100
A11: América | B11: 2318 | C11: 84.81522137 | D11: 1147 | E11: 87.15805471 | F11: 1171 | G11: 82.63937897
A12: Estados Unidos | B12: 1464 | C12: 53.56750823 | D12: 740 | E12: 56.23100304 | F12: 724 | G12: 51.09386027
A13: Canadá | B13: 145 | C13: 5.305525064 | D13: 84 | E13: 6.382978723 | F13: 61 | G13: 4.304869442
A14: México | B14: 133 | C14: 4.866447128 | D14: 57 | E14: 4.331306991 | F14: 76 | G14: 5.363443896
A15: Guatemala | B15: 86 | C15: 3.14672521 | D15: 38 | E15: 2.887537994 | F15: 48 | G15: 3.38743825
A16: Honduras | B16: 85 | C16: 3.110135382 | D16: 43 | E16: 3.267477204 | F16: 42 | G16: 2.964008469
A17: Venezuela | B17: 71 | C17: 2.59787779 | D17: 26 | E17: 1.975683891 | F17: 45 | G17: 3.175723359
A18: El Salvador | B18: 57 | C18: 2.085620198 | D18: 27 | E18: 2.051671733 | F18: 30 | G18: 2.117148906
A19: Panamá | B19: 45 | C19: 1.646542261 | D19: 21 | E19: 1.595744681 | F19: 24 | G19: 1.693719125
A20: Nicaragua | B20: 44 | C20: 1.609952433 | D20: 13 | E20: 0.9878419453 | F20: 31 | G20: 2.187720536
A21: Argentina | B21: 41 | C21: 1.500182949 | D21: 20 | E21: 1.519756839 | F21: 21 | G21: 1.482004234
A22: Colombia | B22: 41 | C22: 1.500182949 | D22: 20 | E22: 1.519756839 | F22: 21 | G22: 1.482004234
A23: Chile | B23: 29 | C23: 1.061105013 | D23: 13 | E23: 0.9878419453 | F23: 16 | G23: 1.129146083
A24: República Dominicana | B24: 27 | C24: 0.9879253568 | D24: 15 | E24: 1.139817629 | F24: 12 | G24: 0.8468595625
A25: Perú | B25: 16 | C25: 0.5854372484 | D25: 10 | E25: 0.7598784195 | F25: 6 | G25: 0.4234297812
A26: Cuba | B26: 9 | C26: 0.3293084523 | D26: 5 | E26: 0.3799392097 | F26: 4 | G26: 0.2822865208
A27: Brasil | B27: 8 | C27: 0.2927186242 | D27: 5 | E27: 0.3799392097 | F27: 3 | G27: 0.2117148906
A28: Uruguay | B28: 7 | C28: 0.2561287962 | D28: 4 | E28: 0.3039513678 | F28: 3 | G28: 0.2117148906
A29: Ecuador | B29: 6 | C29: 0.2195389682 | D29: 4 | E29: 0.3039513678 | F29: 2 | G29: 0.1411432604
A30: Bolivia | B30: 3 | C30: 0.1097694841 | D30: 2 | E30: 0.1519756839 | F30: 1 | G30: 0.0705716302
A31: Trinidad y Tobago | B31: 1 | C31: 0.03658982803 | D31: 0 | E31: 0 | F31: 1 | G31: 0.0705716302
A33: Europa | B33: 371 | C33: 13.5748262 | D33: 151 | E33: 11.47416413 | F33: 220 | G33: 15.52575865
A34: España | B34: 126 | C34: 4.610318332 | D34: 61 | E34: 4.635258359 | F34: 65 | G34: 4.587155963
A35: Francia | B35: 76 | C35: 2.78082693 | D35: 30 | E35: 2.279635258 | F35: 46 | G35: 3.246294989
A36: Suiza | B36: 27 | C36: 0.9879253568 | D36: 3 | E36: 0.2279635258 | F36: 24 | G36: 1.693719125
A37: Alemania | B37: 24 | C37: 0.8781558727 | D37: 12 | E37: 0.9118541033 | F37: 12 | G37: 0.8468595625
A38: Reino Unido | B38: 22 | C38: 0.8049762166 | D38: 13 | E38: 0.9878419453 | F38: 9 | G38: 0.6351446718
A39: Holanda | B39: 22 | C39: 0.8049762166 | D39: 3 | E39: 0.2279635258 | F39: 19 | G39: 1.340860974
A40: Bélgica | B40: 20 | C40: 0.7317965606 | D40: 9 | E40: 0.6838905775 | F40: 11 | G40: 0.7762879323
A41: Italia | B41: 19 | C41: 0.6952067325 | D41: 3 | E41: 0.2279635258 | F41: 16 | G41: 1.129146083
A42: Rusia | B42: 13 | C42: 0.4756677644 | D42: 7 | E42: 0.5319148936 | F42: 6 | G42: 0.4234297812
A43: Austria | B43: 11 | C43: 0.4024881083 | D43: 7 | E43: 0.5319148936 | F43: 4 | G43: 0.2822865208
A44: Noruega | B44: 11 | C44: 0.4024881083 | D44: 3 | E44: 0.2279635258 | F44: 8 | G44: 0.5645730416
A46: Asia | B46: 44 | C46: 1.609952433 | D46: 18 | E46: 1.367781155 | F46: 26 | G46: 1.834862385
A47: Israel | B47: 16 | C47: 0.5854372484 | D47: 7 | E47: 0.5319148936 | F47: 9 | G47: 0.6351446718
A48: China | B48: 9 | C48: 0.3293084523 | D48: 6 | E48: 0.4559270517 | F48: 3 | G48: 0.2117148906
A49: Japón | B49: 9 | C49: 0.3293084523 | D49: 3 | E49: 0.2279635258 | F49: 6 | G49: 0.4234297812
A50: Singapur | B50: 6 | C50: 0.2195389682 | D50: 2 | E50: 0.1519756839 | F50: 4 | G50: 0.2822865208
A51: Qatar | B51: 2 | C51: 0.07317965606 | D51: 0 | E51: 0 | F51: 2 | G51: 0.1411432604
A52: Corea | B52: 1 | C52: 0.03658982803 | D52: 0 | E52: 0 | F52: 1 | G52: 0.0705716302
A53: India | B53: 1 | C53: 0.03658982803 | D53: 0 | E53: 0 | F53: 1 | G53: 0.0705716302
A56: 1/ Costarricenses inscritos(as) que pueden ejercer el voto en extranjero para designar los puestos de Presidencia y Vicepresidencias, así como en consultas populares de orden nacional, según el artículo 187 del Código Electoral.
A57: Fuente: Sección Padrón Electoral del Tribunal Supremo de Elecciones.

Sheet 5
A1: CUADRO 5
A2: COSTA RICA: TOTAL DE ELECTORES(AS) NATURALIZADOS(AS), POR PAÍS DE ORIGEN
A3: SEGÚN SEXO Y GRUPO DE EDAD 1/, AL 31 DE DICIEMBRE DE 2011
A5: SEXO Y GRUPO DE EDAD | B5: País de origen
B6: Total | C6: Nicaragua | D6: Colombia | E6: El Salvador | F6: Cuba | G6: China | H6: Perú | I6: Panamá | J6: Resto de países
A8: Costa Rica | B8: 42699 | C8: 22044 | D8: 3501 | E8: 3236 | F8: 1879 | G8: 1629 | H8: 1323 | I8: 1275 | J8: 7812
A9: 16 - 19 | B9: 217 | C9: 87 | D9: 60 | E9: 1 | F9: 23 | G9: 3 | H9: 9 | I9: 0 | J9: 34
A10: 20 - 24 | B10: 664 | C10: 257 | D10: 121 | E10: 10 | F10: 72 | G10: 15 | H10: 26 | I10: 4 | J10: 159
A11: 25 - 29 | B11: 1491 | C11: 802 | D11: 217 | E11: 22 | F11: 68 | G11: 64 | H11: 65 | I11: 12 | J11: 241
A12: 30 - 34 | B12: 3300 | C12: 1695 | D12: 470 | E12: 233 | F12: 110 | G12: 141 | H12: 107 | I12: 18 | J12: 526
A13: 35 - 39 | B13: 4815 | C13: 2436 | D13: 515 | E13: 369 | F13: 200 | G13: 204 | H13: 175 | I13: 89 | J13: 827
A14: 40 - 44 | B14: 5466 | C14: 2855 | D14: 536 | E14: 414 | F14: 238 | G14: 181 | H14: 166 | I14: 159 | J14: 917
A15: 45 - 49 | B15: 5245 | C15: 2540 | D15: 540 | E15: 405 | F15: 281 | G15: 192 | H15: 177 | I15: 190 | J15: 920
A16: 50 - 54 | B16: 4351 | C16: 2082 | D16: 358 | E16: 416 | F16: 211 | G16: 152 | H16: 176 | I16: 162 | J16: 794
A17: 55 - 59 | B17: 4100 | C17: 1975 | D17: 254 | E17: 444 | F17: 191 | G17: 150 | H17: 158 | I17: 146 | J17: 782
A18: 60 - 64 | B18: 3438 | C18: 1605 | D18: 162 | E18: 362 | F18: 131 | G18: 156 | H18: 114 | I18: 147 | J18: 761
A19: 65 - 69 | B19: 2762 | C19: 1461 | D19: 97 | E19: 235 | F19: 113 | G19: 122 | H19: 67 | I19: 119 | J19: 548
A20: 70 - 74 | B20: 2138 | C20: 1186 | D20: 73 | E20: 143 | F20: 82 | G20: 86 | H20: 41 | I20: 71 | J20: 456
A21: 75 - 79 | B21: 1829 | C21: 1123 | D21: 47 | E21: 90 | F21: 55 | G21: 64 | H21: 21 | I21: 68 | J21: 361
A22: 80 - 84 | B22: 1471 | C22: 939 | D22: 33 | E22: 55 | F22: 44 | G22: 61 | H22: 9 | I22: 56 | J22: 274
A23: 85 y más | B23: 1412 | C23: 1001 | D23: 18 | E23: 37 | F23: 60 | G23: 38 | H23: 12 | I23: 34 | J23: 212
A25: Hombres | B25: 19703 | C25: 9694 | D25: 1627 | E25: 1393 | F25: 1027 | G25: 860 | H25: 734 | I25: 571 | J25: 3797
A26: 16 - 19 | B26: 109 | C26: 44 | D26: 28 | E26: 0 | F26: 13 | G26: 1 | H26: 5 | I26: 0 | J26: 18
A27: 20 - 24 | B27: 322 | C27: 127 | D27: 57 | E27: 5 | F27: 35 | G27: 10 | H27: 10 | I27: 1 | J27: 77
A28: 25 - 29 | B28: 665 | C28: 313 | D28: 100 | E28: 15 | F28: 35 | G28: 39 | H28: 39 | I28: 4 | J28: 120
A29: 30 - 34 | B29: 1388 | C29: 672 | D29: 205 | E29: 106 | F29: 48 | G29: 80 | H29: 56 | I29: 7 | J29: 214
A30: 35 - 39 | B30: 2139 | C30: 1041 | D30: 229 | E30: 161 | F30: 104 | G30: 111 | H30: 85 | I30: 41 | J30: 367
A31: 40 - 44 | B31: 2635 | C31: 1361 | D31: 268 | E31: 200 | F31: 133 | G31: 89 | H31: 83 | I31: 76 | J31: 425
A32: 45 - 49 | B32: 2353 | C32: 1104 | D32: 236 | E32: 159 | F32: 161 | G32: 102 | H32: 89 | I32: 84 | J32: 418
A33: 50 - 54 | B33: 1801 | C33: 725 | D33: 169 | E33: 163 | F33: 123 | G33: 78 | H33: 98 | I33: 68 | J33: 377
A34: 55 - 59 | B34: 1768 | C34: 758 | D34: 115 | E34: 162 | F34: 119 | G34: 79 | H34: 95 | I34: 60 | J34: 380
A35: 60 - 64 | B35: 1663 | C35: 728 | D35: 83 | E35: 159 | F35: 74 | G35: 83 | H35: 73 | I35: 62 | J35: 401
A36: 65 - 69 | B36: 1410 | C36: 695 | D36: 53 | E36: 111 | F36: 68 | G36: 60 | H36: 46 | I36: 61 | J36: 316
A37: 70 - 74 | B37: 1100 | C37: 588 | D37: 39 | E37: 76 | F37: 45 | G37: 39 | H37: 25 | I37: 37 | J37: 251
A38: 75 - 79 | B38: 868 | C38: 520 | D38: 23 | E38: 35 | F38: 25 | G38: 41 | H38: 15 | I38: 30 | J38: 179
A39: 80 - 84 | B39: 766 | C39: 494 | D39: 17 | E39: 27 | F39: 17 | G39: 27 | H39: 6 | I39: 24 | J39: 154
A40: 85 y más | B40: 716 | C40: 524 | D40: 5 | E40: 14 | F40: 27 | G40: 21 | H40: 9 | I40: 16 | J40: 100
A42: Mujeres | B42: 22996 | C42: 12350 | D42: 1874 | E42: 1843 | F42: 852 | G42: 769 | H42: 589 | I42: 704 | J42: 4015
A43: 16 - 19 | B43: 108 | C43: 43 | D43: 32 | E43: 1 | F43: 10 | G43: 2 | H43: 4 | I43: 0 | J43: 16
A44: 20 - 24 | B44: 342 | C44: 130 | D44: 64 | E44: 5 | F44: 37 | G44: 5 | H44: 16 | I44: 3 | J44: 82
A45: 25 - 29 | B45: 826 | C45: 489 | D45: 117 | E45: 7 | F45: 33 | G45: 25 | H45: 26 | I45: 8 | J45: 121
A46: 30 - 34 | B46: 1912 | C46: 1023 | D46: 265 | E46: 127 | F46: 62 | G46: 61 | H46: 51 | I46: 11 | J46: 312
A47: 35 - 39 | B47: 2676 | C47: 1395 | D47: 286 | E47: 208 | F47: 96 | G47: 93 | H47: 90 | I47: 48 | J47: 460
A48: 40 - 44 | B48: 2831 | C48: 1494 | D48: 268 | E48: 214 | F48: 105 | G48: 92 | H48: 83 | I48: 83 | J48: 492
A49: 45 - 49 | B49: 2892 | C49: 1436 | D49: 304 | E49: 246 | F49: 120 | G49: 90 | H49: 88 | I49: 106 | J49: 502
A50: 50 - 54 | B50: 2550 | C50: 1357 | D50: 189 | E50: 253 | F50: 88 | G50: 74 | H50: 78 | I50: 94 | J50: 417
A51: 55 - 59 | B51: 2332 | C51: 1217 | D51: 139 | E51: 282 | F51: 72 | G51: 71 | H51: 63 | I51: 86 | J51: 402
A52: 60 - 64 | B52: 1775 | C52: 877 | D52: 79 | E52: 203 | F52: 57 | G52: 73 | H52: 41 | I52: 85 | J52: 360
A53: 65 - 69 | B53: 1352 | C53: 766 | D53: 44 | E53: 124 | F53: 45 | G53: 62 | H53: 21 | I53: 58 | J53: 232
A54: 70 - 74 | B54: 1038 | C54: 598 | D54: 34 | E54: 67 | F54: 37 | G54: 47 | H54: 16 | I54: 34 | J54: 205
A55: 75 - 79 | B55: 961 | C55: 603 | D55: 24 | E55: 55 | F55: 30 | G55: 23 | H55: 6 | I55: 38 | J55: 182
A56: 80 - 84 | B56: 705 | C56: 445 | D56: 16 | E56: 28 | F56: 27 | G56: 34 | H56: 3 | I56: 32 | J56: 120
A57: 85 y más | B57: 696 | C57: 477 | D57: 13 | E57: 23 | F57: 33 | G57: 17 | H57: 3 | I57: 18 | J57: 112
A60: 1/ Incluye las personas menores que tramitaron su cédula y cumplirán 18 años de edad a la fecha de la próxima elección de Presidente y Vicepresidentes de la República, según el artículo 76 de la Ley 3504: "Ley Orgánica del Tribunal Supremo de Elecciones y del Registro Civil".
A61: Fuente: Sección Padrón Electoral del Tribunal Supremo de Elecciones.

Sheet G2
A2: Costa Rica | B2: ='3'!B7 -> 2931888 | E2: GRÁFICO 2
A3: Resto de países | B3: ='5'!J8 -> 7812 | C3: =+B3/$B$11*100 -> 18.29551043 | E3: COSTA RICA: PORCENTAJE DE ELECTORES(AS) NATURALIZADOS(AS)
A4: Panamá | B4: ='5'!I8 -> 1275 | C4: 2.986018408 | E4: POR PAÍS DE ORIGEN, AL 31 DE DICIEMBRE DE 2011
A5: Perú | B5: ='5'!H8 -> 1323 | C5: 3.098433219
A6: China | B6: ='5'!G8 -> 1629 | C6: 3.815077636
A7: Cuba | B7: ='5'!F8 -> 1879 | C7: 4.400571442
A8: El Salvador | B8: ='5'!E8 -> 3236 | C8: 7.578631818
A9: Colombia | B9: ='5'!D8 -> 3501 | C9: 8.199255252
A10: Nicaragua | B10: ='5'!C8 -> 22044 | C10: =+B10/$B$11*100 -> 51.62650179
B11: =SUM(B3:B10) -> 42699
A13: Los datos se copian del cuadro respectivo
A14: ya que el total de cada país puede variar | C14: =SUM(D14:R14) -> 0
A15: y por tanto la posición dentros del gráfico
C16: =SUM(D16:R16) -> 0
C18: =SUM(D18:R18) -> 0
C20: =SUM(D20:R20) -> 0
C22: =SUM(D22:R22) -> 0
C24: =SUM(D24:R24) -> 0
C26: =SUM(D26:R26) -> 0
C28: =SUM(D28:R28) -> 0
C30: =SUM(D30:R30) -> 0
E31: Fuente: Cuadro 5.

Sheet 6
A1: CUADRO 6
A2: COSTA RICA: NUEVOS(AS) ELECTORES(AS) 1/ EMPADRONADOS(AS) DURANTE EL AÑO
A3: POR MES, SEGÚN PROVINCIA Y SEXO, AL 31 DE DICIEMBRE DE 2011
A5: Provincia y sexo | B5: Total | C5: Enero | D5: Febrero | E5: Marzo | F5: Abril | G5: Mayo | H5: Junio | I5: Julio | J5: Agosto | K5: Setiembre | L5: Octubre | M5: Noviembre | N5: Diciembre
A7: Costa Rica | B7: 634254 | C7: 0 | D7: 0 | E7: 632619 | F7: 221 | G7: 236 | H7: 277 | I7: 161 | J7: 168 | K7: 95 | L7: 188 | M7: 165 | N7: 124
A8: Hombres | B8: 324007 | C8: 0 | D8: 0 | E8: 323168 | F8: 118 | G8: 137 | H8: 129 | I8: 76 | J8: 82 | K8: 54 | L8: 93 | M8: 83 | N8: 67
A9: Mujeres | B9: 310247 | C9: 0 | D9: 0 | E9: 309451 | F9: 103 | G9: 99 | H9: 148 | I9: 85 | J9: 86 | K9: 41 | L9: 95 | M9: 82 | N9: 57
A11: San José | B11: 276130 | C11: 0 | D11: 0 | E11: 275626 | F11: 60 | G11: 79 | H11: 92 | I11: 60 | J11: 55 | K11: 33 | L11: 55 | M11: 27 | N11: 43
A12: Hombres | B12: 141005 | C12: 0 | D12: 0 | E12: 140741 | F12: 38 | G12: 51 | H12: 40 | I12: 22 | J12: 27 | K12: 16 | L12: 33 | M12: 14 | N12: 23
A13: Mujeres | B13: 135125 | C13: 0 | D13: 0 | E13: 134885 | F13: 22 | G13: 28 | H13: 52 | I13: 38 | J13: 28 | K13: 17 | L13: 22 | M13: 13 | N13: 20
A15: Alajuela | B15: 101458 | C15: 0 | D15: 0 | E15: 101286 | F15: 44 | G15: 17 | H15: 21 | I15: 13 | J15: 24 | K15: 14 | L15: 13 | M15: 10 | N15: 16
A16: Hombres | B16: 52086 | C16: 0 | D16: 0 | E16: 51985 | F16: 24 | G16: 14 | H16: 13 | I16: 10 | J16: 10 | K16: 10 | L16: 10 | M16: 5 | N16: 5
A17: Mujeres | B17: 49372 | C17: 0 | D17: 0 | E17: 49301 | F17: 20 | G17: 3 | H17: 8 | I17: 3 | J17: 14 | K17: 4 | L17: 3 | M17: 5 | N17: 11
A19: Cartago | B19: 64973 | C19: 0 | D19: 0 | E19: 64884 | F19: 14 | G19: 22 | H19: 16 | I19: 11 | J19: 4 | K19: 5 | L19: 4 | M19: 9 | N19: 4
A20: Hombres | B20: 33369 | C20: 0 | D20: 0 | E20: 33318 | F20: 7 | G20: 13 | H20: 11 | I20: 2 | J20: 3 | K20: 5 | L20: 1 | M20: 5 | N20: 4
A21: Mujeres | B21: 31604 | C21: 0 | D21: 0 | E21: 31566 | F21: 7 | G21: 9 | H21: 5 | I21: 9 | J21: 1 | K21: 0 | L21: 3 | M21: 4 | N21: 0
A23: Heredia | B23: 30221 | C23: 0 | D23: 0 | E23: 30194 | F23: 1 | G23: 10 | H23: 3 | I23: 1 | J23: 0 | K23: 4 | L23: 6 | M23: 0 | N23: 2
A24: Hombres | B24: 15437 | C24: 0 | D24: 0 | E24: 15428 | F24: 1 | G24: 5 | H24: 1 | I24: 0 | J24: 0 | K24: 2 | L24: 0 | M24: 0 | N24: 0
A25: Mujeres | B25: 14784 | C25: 0 | D25: 0 | E25: 14766 | F25: 0 | G25: 5 | H25: 2 | I25: 1 | J25: 0 | K25: 2 | L25: 6 | M25: 0 | N25: 2
A27: Guanacaste | B27: 45216 | C27: 0 | D27: 0 | E27: 45123 | F27: 15 | G27: 19 | H27: 19 | I27: 8 | J27: 2 | K27: 5 | L27: 2 | M27: 13 | N27: 10
A28: Hombres | B28: 23035 | C28: 0 | D28: 0 | E28: 22987 | F28: 7 | G28: 12 | H28: 12 | I28: 5 | J28: 0 | K28: 0 | L28: 1 | M28: 8 | N28: 3
A29: Mujeres | B29: 22181 | C29: 0 | D29: 0 | E29: 22136 | F29: 8 | G29: 7 | H29: 7 | I29: 3 | J29: 2 | K29: 5 | L29: 1 | M29: 5 | N29: 7
A31: Puntarenas | B31: 60232 | C31: 0 | D31: 0 | E31: 60099 | F31: 21 | G31: 18 | H31: 13 | I31: 24 | J31: 19 | K31: 5 | L31: 12 | M31: 13 | N31: 8
A32: Hombres | B32: 30665 | C32: 0 | D32: 0 | E32: 30590 | F32: 12 | G32: 9 | H32: 7 | I32: 15 | J32: 9 | K32: 5 | L32: 5 | M32: 7 | N32: 6
A33: Mujeres | B33: 29567 | C33: 0 | D33: 0 | E33: 29509 | F33: 9 | G33: 9 | H33: 6 | I33: 9 | J33: 10 | K33: 0 | L33: 7 | M33: 6 | N33: 2
A35: Limón | B35: 52162 | C35: 0 | D35: 0 | E35: 52027 | F35: 12 | G35: 26 | H35: 14 | I35: 19 | J35: 5 | K35: 10 | L35: 19 | M35: 17 | N35: 13
A36: Hombres | B36: 26469 | C36: 0 | D36: 0 | E36: 26386 | F36: 10 | G36: 18 | H36: 3 | I36: 7 | J36: 3 | K36: 7 | L36: 11 | M36: 13 | N36: 11
A37: Mujeres | B37: 25693 | C37: 0 | D37: 0 | E37: 25641 | F37: 2 | G37: 8 | H37: 11 | I37: 12 | J37: 2 | K37: 3 | L37: 8 | M37: 4 | N37: 2
A39: Partido especial | B39: 2667 | C39: 0 | D39: 0 | E39: 2460 | F39: 14 | G39: 19 | H39: 18 | I39: 21 | J39: 26 | K39: 17 | L39: 30 | M39: 35 | N39: 27
A40: Hombres | B40: 1373 | C40: 0 | D40: 0 | E40: 1269 | F40: 7 | G40: 3 | H40: 9 | I40: 13 | J40: 16 | K40: 9 | L40: 15 | M40: 18 | N40: 14
A41: Mujeres | B41: 1294 | C41: 0 | D41: 0 | E41: 1191 | F41: 7 | G41: 16 | H41: 9 | I41: 8 | J41: 10 | K41: 8 | L41: 15 | M41: 17 | N41: 13
A43: Naturalizados | B43: 1195 | C43: 0 | D43: 0 | E43: 920 | F43: 40 | G43: 26 | H43: 81 | I43: 4 | J43: 33 | K43: 2 | L43: 47 | M43: 41 | N43: 1
A44: Hombres | B44: 568 | C44: 0 | D44: 0 | E44: 464 | F44: 12 | G44: 12 | H44: 33 | I44: 2 | J44: 14 | K44: 0 | L44: 17 | M44: 13 | N44: 1
A45: Mujeres | B45: 627 | C45: 0 | D45: 0 | E45: 456 | F45: 28 | G45: 14 | H45: 48 | I45: 2 | J45: 19 | K45: 2 | L45: 30 | M45: 28 | N45: 0
A48: 1/ Incluye personas que nacieron del 02/12/1984 al 05/12/1992 de las diferentes provincias, el partido especial y los naturalizados que no se han empadronado en anteriores procesos electorales.
A50: Nota: El padrón estuvo cerrado por las elecciones municipales hasta febrero inclusive, a partir de marzo se aplicó la contabilidad de nuevos(as) electores(as).
A52: Fuente: Sección Padrón Electoral del Tribunal Supremo de Elecciones.

Sheet 7
A1: CUADRO 7
A2: COSTA RICA: MOVIMIENTOS AL PADRÓN NACIONAL ELECTORAL
A3: POR TIPO DE MOVIMIENTO, SEGÚN MES
A4: AL 31 DE DICIEMBRE DE 2011
A6: Mes | B6: Padrón Nacional Electoral anterior | D6: Tipo de movimiento | O6: Padrón Nacional Electoral actual
D7: Inclusiones | I7: Exclusiones
D8: Cédulas Primera vez1/ | F8: Cédulas renovadas | I8: Defunción | K8: Cédulas vencidas2/ | M8: Otras
A10: Enero | B10: 2866217 | D10: 0 | F10: 0 | I10: 0 | K10: 0 | M10: 0 | O10: 2866217
A11: Febrero | B11: 2866217 | D11: 0 | F11: 0 | I11: 0 | K11: 0 | M11: 0 | O11: 2866217
A12: Marzo | B12: 2866217 | D12: 50333 | F12: 8740 | I12: 8407 | K12: 32585 | M12: 49 | O12: 2884249
A13: Abril | B13: 2884249 | D13: 5701 | F13: 5221 | I13: 639 | K13: 9323 | M13: 15 | O13: 2885194
A14: Mayo | B14: 2885194 | D14: 7079 | F14: 7629 | I14: 1845 | K14: 8751 | M14: 14 | O14: 2889292
A15: Junio | B15: 2889292 | D15: 7840 | F15: 8231 | I15: 1715 | K15: 8810 | M15: 16 | O15: 2894822
A16: Julio | B16: 2894822 | D16: 6498 | F16: 7162 | I16: 1202 | K16: 6804 | M16: 12 | O16: 2900464
A17: Agosto | B17: 2900464 | D17: 7241 | F17: 7893 | I17: 1217 | K17: 8448 | M17: 8 | O17: 2905925
A18: Setiembre | B18: 2905925 | D18: 6340 | F18: 6736 | I18: 1124 | K18: 5338 | M18: 21 | O18: 2912518
A19: Octubre | B19: 2912518 | D19: 7975 | F19: 7642 | I19: 1415 | K19: 9403 | M19: 15 | O19: 2917302
A20: Noviembre | B20: 2917302 | D20: 7567 | F20: 7034 | I20: 1360 | K20: 5202 | M20: 22 | O20: 2925319
A21: Diciembre | B21: 2925319 | D21: 5961 | F21: 5226 | I21: 1044 | K21: 3570 | M21: 4 | O21: 2931888
A24: 1/ Incluye nuevos electores, inclusión condicional de nuevos electores y otras inclusiones.
A25: 2/ No se aplican exclusiones por caducidad durante el año anterior a una elección. (Ley Orgánica del TSE, Art. 94)
A27: Nota: El padrón estuvo cerrado por las elecciones municipales hasta febrero inclusive.
A28: Fuente: Sección Padrón Electoral del Tribunal Supremo de Elecciones.

Sheet 8
A1: CUADRO 8
A2: COSTA RICA: PRODUCTOS Y SERVICIOS BRINDADOS, POR TIPO DE SERVICIO
A3: SEGÚN MES, AL 31 DE DICIEMBRE DE 2011
A5: Mes | B5: Total | C5: Productos y Sevicios
C6: Cédulas de identidad impresas | D6: Tarjetas identidad de menores impresas | E6: Certificaciones y constancias expedidas | F6: Asambleas de partidos políticos fiscalizadas | G6: Atención de consultas en materia electoral 1/ | H6: Movimientos y actualizaciones al Padrón Electoral
A8: Total | B8: 4799085 | C8: 649906 | D8: 165877 | E8: 2960693 | F8: 60 | G8: 6586 | H8: 1015963
A10: Enero | B10: 317648 | C10: 55979 | D10: 15691 | E10: 244035 | F10: 0 | G10: 1943 | H10: 0
A11: Febrero | B11: 403362 | C11: 63969 | D11: 18002 | E11: 320650 | F11: 10 | G11: 731 | H11: 0
A12: Marzo | B12: 855843 | C12: 63435 | D12: 11432 | E12: 316456 | F12: 4 | G12: 544 | H12: 463972
A13: Abril | B13: 268862 | C13: 40387 | D13: 8645 | E13: 168237 | F13: 1 | G13: 263 | H13: 51329
A14: Mayo | B14: 355819 | C14: 57071 | D14: 13058 | E14: 217510 | F14: 3 | G14: 290 | H14: 67887
A15: Junio | B15: 357370 | C15: 58779 | D15: 12410 | E15: 213629 | F15: 5 | G15: 309 | H15: 72238
A16: Julio | B16: 324730 | C16: 51311 | D16: 17076 | E16: 196168 | F16: 6 | G16: 275 | H16: 59894
A17: Agosto | B17: 392268 | C17: 57138 | D17: 12665 | E17: 254211 | F17: 2 | G17: 352 | H17: 67900
A18: Setiembre | B18: 334693 | C18: 44476 | D18: 12026 | E18: 221748 | F18: 0 | G18: 386 | H18: 56057
A19: Octubre | B19: 432403 | C19: 60065 | D19: 16253 | E19: 287553 | F19: 4 | G19: 464 | H19: 68064
A20: Noviembre | B20: 429179 | C20: 53463 | D20: 14407 | E20: 299645 | F20: 15 | G20: 528 | H20: 61121
A21: Diciembre | B21: 326908 | C21: 43833 | D21: 14212 | E21: 220851 | F21: 10 | G21: 501 | H21: 47501
A24: 1/ De Partidos Políticos, Municipalidades, Asamblea Legislativa y otros.
A26: Fuente: Oficinas del Tribunal Supremo de Elecciones.

Sheet 9
A1: CUADRO 9
A2: COSTA RICA: CERTIFICACIONES SOLICITADAS VÍA
A3: INTERNET, POR TIPO DE SOLICITUD, SEGÚN MES
A4: AL 31 DE DICIEMBRE DE 2011
A6: Mes | B6: Total | C6: Tipo de solicitud
C7: Nacimiento | D7: Matrimonio | E7: Defunción | F7: No aparece matrimonio
A9: Total | B9: 97196 | C9: 47155 | D9: 27993 | E9: 5127 | F9: 16921
A11: Enero | B11: 7462 | C11: 4125 | D11: 1287 | E11: 389 | F11: 1661
A12: Febrero | B12: 6435 | C12: 3505 | D12: 1173 | E12: 310 | F12: 1447
A13: Marzo | B13: 6686 | C13: 3281 | D13: 1926 | E13: 462 | F13: 1017
A14: Abril | B14: 6123 | C14: 3237 | D14: 1069 | E14: 439 | F14: 1378
A15: Mayo | B15: 8000 | C15: 3576 | D15: 1689 | E15: 474 | F15: 2261
A16: Junio | B16: 8269 | C16: 4607 | D16: 1510 | E16: 482 | F16: 1670
A17: Julio | B17: 5778 | C17: 2945 | D17: 1292 | E17: 412 | F17: 1129
A18: Agosto | B18: 10402 | C18: 6123 | D18: 2121 | E18: 648 | F18: 1510
A19: Setiembre | B19: 6601 | C19: 3650 | D19: 1320 | E19: 428 | F19: 1203
A20: Octubre | B20: 18386 | C20: 4225 | D20: 12391 | E20: 431 | F20: 1339
A21: Noviembre | B21: 7928 | C21: 4700 | D21: 1346 | E21: 427 | F21: 1455
A22: Diciembre | B22: 5126 | C22: 3181 | D22: 869 | E22: 225 | F22: 851
A25: Fuente: Departamento Civil del Tribunal Supremo de Elecciones.

Sheet 10
A1: CUADRO 10
A2: COSTA RICA: TARJETAS DE IDENTIDAD DE MENORES IMPRESAS
A3: POR PROVINCIA, SEGÚN MES, AL 31 DE DICIEMBRE DE 2011
A5: Mes | B5: Total | C5: Provincia
C6: San José | D6: Alajuela | E6: Cartago | F6: Heredia | G6: Guanacaste | H6: Puntarenas | I6: Limón
A8: Total | B8: 165877 | C8: 57190 | D8: 31488 | E8: 16555 | F8: 12921 | G8: 11444 | H8: 18061 | I8: 18218
A10: Enero | B10: 15691 | C10: 6703 | D10: 2183 | E10: 1505 | F10: 995 | G10: 1132 | H10: 1622 | I10: 1551
A11: Febrero | B11: 18002 | C11: 5456 | D11: 3383 | E11: 1708 | F11: 1284 | G11: 983 | H11: 2768 | I11: 2420
A12: Marzo | B12: 11432 | C12: 3304 | D12: 2051 | E12: 1290 | F12: 921 | G12: 682 | H12: 1972 | I12: 1212
A13: Abril | B13: 8645 | C13: 2904 | D13: 1611 | E13: 774 | F13: 608 | G13: 558 | H13: 1262 | I13: 928
A14: Mayo | B14: 13058 | C14: 4268 | D14: 2844 | E14: 1273 | F14: 949 | G14: 1250 | H14: 1328 | I14: 1146
A15: Junio | B15: 12410 | C15: 4130 | D15: 3191 | E15: 1001 | F15: 839 | G15: 1049 | H15: 1033 | I15: 1167
A16: Julio | B16: 17076 | C16: 6204 | D16: 3440 | E16: 1678 | F16: 1326 | G16: 1123 | H16: 1328 | I16: 1977
A17: Agosto | B17: 12665 | C17: 4196 | D17: 2316 | E17: 1390 | F17: 1262 | G17: 718 | H17: 981 | I17: 1802
A18: Setiembre | B18: 12026 | C18: 4460 | D18: 2043 | E18: 1333 | F18: 1162 | G18: 730 | H18: 1052 | I18: 1246
A19: Octubre | B19: 16253 | C19: 6469 | D19: 2925 | E19: 1826 | F19: 1331 | G19: 929 | H19: 1304 | I19: 1469
A20: Noviembre | B20: 14407 | C20: 5136 | D20: 2672 | E20: 1396 | F20: 1287 | G20: 976 | H20: 1502 | I20: 1438
A21: Diciembre | B21: 14212 | C21: 3960 | D21: 2829 | E21: 1381 | F21: 957 | G21: 1314 | H21: 1909 | I21: 1862
A24: Fuente: Departamento Civil y Coordinación de Servicios Regionales del Tribunal Supremo de Elecciones.

Sheet 11
A1: CUADRO 11
A2: COSTA RICA: INSCRIPCIONES CIVILES POR MES, SEGÚN CLASE DE INSCRIPCIÓN
A3: AL 31 DE DICIEMBRE DE 2011
A5: Clase de inscripción 1/ | B5: Total | C5: Mes
C6: Enero | D6: Febrero | E6: Marzo | F6: Abril | G6: Mayo | H6: Junio | I6: Julio | J6: Agosto | K6: Setiembre | L6: Octubre | M6: Noviembre | N6: Diciembre
A8: Nacimientos | B8: 77697 | C8: 5881 | D8: 6017 | E8: 8397 | F8: 4783 | G8: 8714 | H8: 6579 | I8: 5447 | J8: 6868 | K8: 6013 | L8: 7276 | M8: 6669 | N8: 5053
A9: Matrimonios: | B9: 25021 | C9: 2684 | D9: 3454 | E9: 2655 | F9: 1718 | G9: 2360 | H9: 1966 | I9: 1548 | J9: 1882 | K9: 1698 | L9: 1429 | M9: 1785 | N9: 1842
A10: Católicos | B10: 6263 | C10: 734 | D10: 1079 | E10: 512 | F10: 687 | G10: 588 | H10: 520 | I10: 339 | J10: 368 | K10: 403 | L10: 315 | M10: 475 | N10: 243
A11: Civiles | B11: 18325 | C11: 1913 | D11: 2336 | E11: 2140 | F11: 995 | G11: 1742 | H11: 1381 | I11: 1166 | J11: 1460 | K11: 1262 | L11: 1099 | M11: 1269 | N11: 1562
A12: Extranjeros2/ | B12: 433 | C12: 37 | D12: 39 | E12: 3 | F12: 36 | G12: 30 | H12: 65 | I12: 43 | J12: 54 | K12: 33 | L12: 15 | M12: 41 | N12: 37
A13: Defunciones | B13: 18386 | C13: 1654 | D13: 1739 | E13: 1730 | F13: 976 | G13: 2037 | H13: 1711 | I13: 1631 | J13: 1327 | K13: 1542 | L13: 1186 | M13: 1587 | N13: 1266
A14: Divorcios | B14: 12592 | C14: 859 | D14: 844 | E14: 1222 | F14: 1152 | G14: 1215 | H14: 1115 | I14: 1178 | J14: 515 | K14: 1519 | L14: 1135 | M14: 1032 | N14: 806
A15: Separaciones Judiciales | B15: 52 | C15: 0 | D15: 12 | E15: 1 | F15: 1 | G15: 21 | H15: 6 | I15: 2 | J15: 1 | K15: 4 | L15: 2 | M15: 1 | N15: 1
A16: Reconocimientos | B16: 24932 | C16: 1866 | D16: 1713 | E16: 2557 | F16: 1158 | G16: 2463 | H16: 3541 | I16: 2572 | J16: 1628 | K16: 1753 | L16: 1949 | M16: 2354 | N16: 1378
A17: Legitimaciones | B17: 25 | C17: 1 | D17: 2 | E17: 0 | F17: 0 | G17: 2 | H17: 9 | I17: 4 | J17: 1 | K17: 0 | L17: 3 | M17: 1 | N17: 2
A18: Adopciones | B18: 244 | C18: 23 | D18: 12 | E18: 16 | F18: 27 | G18: 30 | H18: 16 | I18: 32 | J18: 20 | K18: 2 | L18: 16 | M18: 39 | N18: 11
A19: Impugnación de paternidad | B19: 338 | C19: 12 | D19: 47 | E19: 26 | F19: 38 | G19: 29 | H19: 36 | I19: 23 | J19: 3 | K19: 45 | L19: 25 | M19: 26 | N19: 28
A20: Investigación de paternidad | B20: 682 | C20: 19 | D20: 39 | E20: 80 | F20: 43 | G20: 118 | H20: 44 | I20: 92 | J20: 12 | K20: 101 | L20: 23 | M20: 82 | N20: 29
A21: Opciones 3/ | B21: 490 | C21: 50 | D21: 57 | E21: 74 | F21: 33 | G21: 25 | H21: 61 | I21: 20 | J21: 18 | K21: 22 | L21: 67 | M21: 34 | N21: 29
A22: Naturalizaciones | B22: 3415 | C22: 195 | D22: 262 | E22: 223 | F22: 0 | G22: 338 | H22: 284 | I22: 117 | J22: 247 | K22: 228 | L22: 144 | M22: 490 | N22: 887
A25: 1/ Todos los datos se refieren a hechos inscritos en el mes respectivo, no así a los ocurridos.
A27: 2/ Matrimonios inscritos, pero realilzados en el extranjero.
A29: 3/ Trámite realizado en Actos Jurídicos.
A31: Fuente: Sección de Inscripciones, Oficina de Actos Jurídicos, Sección de Opciones y Naturalizaciones del Tribunal Supremo de Elecciones.

Sheet G3
A2: GRÁFICO 3 | K2: Nacimientos | L2: Defunciones
A3: COSTA RICA: NACIMIENTOS Y DEFUNCIONES INSCRITAS | K3: 77697 | L3: 18386
A4: POR MES, AL 31 DE DICIEMBRE DE 2011 | J4: ENE | K4: 5881 | L4: 1654
J5: FEB | K5: 6017 | L5: 1739
J6: MAR | K6: 8397 | L6: 1730
J7: ABR | K7: 4783 | L7: 976
J8: MAY | K8: 8714 | L8: 2037
J9: JUN | K9: 6579 | L9: 1711
J10: JUL | K10: 5447 | L10: 1631
J11: AGO | K11: 6868 | L11: 1327
J12: SET | K12: 6013 | L12: 1542
J13: OCT | K13: 7276 | L13: 1186
J14: NOV | K14: 6669 | L14: 1587
J15: DIC | K15: 5053 | L15: 1266
J17: Al pasar a imprenta y web, se debe pegar como valores para
J18: romper el vinculo con la tabla de datos
A26: Fuente: Cuadro 11.

Sheet G4 y G5
A2: GRÁFICO 4
A3: COSTA RICA: MATRIMONIOS INSCRITOS, SEGÚN CLASE DE INSCRIPCIÓN | K3: MATRIMONIOS INSCRITOS
A4: AL 31 DE DICIEMBRE DE 2011 | K4: Civiles | L4: 18325 | M4: 73.23847968
K5: Católicos | L5: 6263 | M5: 25.03097398
K6: Extranjeros | L6: 433 | M6: 1.730546341
K7: Total | L7: 25021
K10: Al pasar a imprenta y web, se debe pegar como valores para
K11: romper el vinculo con la tabla de datos
A29: Fuente: Cuadro 11.
A32: GRÁFICO 5 | K32: MATRIMONIOS vs DIVORCIOS
A33: COSTA RICA: MATRIMONIOS Y DIVORCIOS INSCRITOS | L33: Matrimonios | M33: Divorcios
A34: POR MES, AL 31 DE DICIEMBRE DE 2011 | K34: ENE | L34: 2684 | M34: 859
K35: FEB | L35: 3454 | M35: 844
K36: MAR | L36: 2655 | M36: 1222
K37: ABR | L37: 1718 | M37: 1152
K38: MAY | L38: 2360 | M38: 1215
K39: JUN | L39: 1966 | M39: 1115
K40: JUL | L40: 1548 | M40: 1178
K41: AGO | L41: 1882 | M41: 515
K42: SET | L42: 1698 | M42: 1519
K43: OCT | L43: 1429 | M43: 1135
K44: NOV | L44: 1785 | M44: 1032
K45: DIC | L45: 1842 | M45: 806
L46: 25021 | M46: 12592
K49: Al pasar a imprenta y web, se debe pegar como valores para
K50: romper el vinculo con la tabla de datos
A60: Fuente: Cuadro 11.

Sheet 12
A1: CUADRO 12
A2: COSTA RICA: NACIMIENTOS INSCRITOS, POR PROVINCIA Y PARTIDO ESPECIAL
A3: SEGÚN MES, AL 31 DE DICIEMBRE DE 2011
A5: Mes | B5: Total | C5: San José | D5: Alajuela | E5: Cartago | F5: Heredia | G5: Guanacaste | H5: Puntarenas | I5: Limón | J5: Partido especial 1/
A7: Costa Rica | B7: 77697 | C7: 30428 | D7: 13275 | E7: 6935 | F7: 4775 | G7: 5841 | H7: 6699 | I7: 7580 | J7: 2164
A9: Enero | B9: 5881 | C9: 2277 | D9: 1172 | E9: 420 | F9: 446 | G9: 434 | H9: 441 | I9: 629 | J9: 62
A10: Febrero | B10: 6017 | C10: 2831 | D10: 947 | E10: 727 | F10: 423 | G10: 274 | H10: 192 | I10: 488 | J10: 135
A11: Marzo | B11: 8397 | C11: 2699 | D11: 1664 | E11: 892 | F11: 438 | G11: 822 | H11: 856 | I11: 771 | J11: 255
A12: Abril | B12: 4783 | C12: 2442 | D12: 497 | E12: 363 | F12: 297 | G12: 281 | H12: 576 | I12: 322 | J12: 5
A13: Mayo | B13: 8714 | C13: 3157 | D13: 1277 | E13: 771 | F13: 538 | G13: 493 | H13: 1171 | I13: 999 | J13: 308
A14: Junio | B14: 6579 | C14: 2474 | D14: 1238 | E14: 600 | F14: 349 | G14: 556 | H14: 530 | I14: 595 | J14: 237
A15: Julio | B15: 5447 | C15: 2175 | D15: 940 | E15: 445 | F15: 436 | G15: 407 | H15: 432 | I15: 539 | J15: 73
A16: Agosto | B16: 6868 | C16: 2877 | D16: 1297 | E16: 612 | F16: 414 | G16: 523 | H16: 434 | I16: 644 | J16: 67
A17: Setiembre | B17: 6013 | C17: 2289 | D17: 1046 | E17: 527 | F17: 488 | G17: 546 | H17: 442 | I17: 540 | J17: 135
A18: Octubre | B18: 7276 | C18: 2433 | D18: 1333 | E18: 543 | F18: 331 | G18: 658 | H18: 699 | I18: 972 | J18: 307
A19: Noviembre | B19: 6669 | C19: 2811 | D19: 901 | E19: 568 | F19: 411 | G19: 372 | H19: 477 | I19: 703 | J19: 426
A20: Diciembre | B20: 5053 | C20: 1963 | D20: 963 | E20: 467 | F20: 204 | G20: 475 | H20: 449 | I20: 378 | J20: 154
A23: 1/ Inscripción de nacimientos de costarricenses nacidos en el extranjero.
A25: Fuente: Sección de Inscripciones del Tribunal Supremo de Elecciones.

Sheet 13
A1: CUADRO 13
A2: COSTA RICA: DEFUNCIONES INSCRITAS, POR PROVINCIA, SEGÚN MES
A3: AL 31 DE DICIEMBRE DE 2011
A5: Mes | B5: Total | C5: San José | D5: Alajuela | E5: Cartago | F5: Heredia | G5: Guanacaste | H5: Puntarenas | I5: Limón
A7: Costa Rica | B7: 18386 | C7: 8686 | D7: 2574 | E7: 1571 | F7: 1328 | G7: 1461 | H7: 1476 | I7: 1290
A9: Enero | B9: 1654 | C9: 817 | D9: 168 | E9: 147 | F9: 168 | G9: 98 | H9: 150 | I9: 106
A10: Febrero | B10: 1739 | C10: 877 | D10: 254 | E10: 182 | F10: 70 | G10: 140 | H10: 136 | I10: 80
A11: Marzo | B11: 1730 | C11: 650 | D11: 266 | E11: 101 | F11: 165 | G11: 258 | H11: 163 | I11: 127
A12: Abril | B12: 976 | C12: 654 | D12: 89 | E12: 83 | F12: 16 | G12: 43 | H12: 43 | I12: 48
A13: Mayo | B13: 2037 | C13: 893 | D13: 338 | E13: 168 | F13: 154 | G13: 138 | H13: 160 | I13: 186
A14: Junio | B14: 1711 | C14: 757 | D14: 272 | E14: 158 | F14: 146 | G14: 119 | H14: 128 | I14: 131
A15: Julio | B15: 1631 | C15: 727 | D15: 267 | E15: 149 | F15: 121 | G15: 114 | H15: 149 | I15: 104
A16: Agosto | B16: 1327 | C16: 624 | D16: 190 | E16: 132 | F16: 99 | G16: 85 | H16: 95 | I16: 102
A17: Setiembre | B17: 1542 | C17: 755 | D17: 212 | E17: 131 | F17: 114 | G17: 144 | H17: 113 | I17: 73
A18: Octubre | B18: 1186 | C18: 664 | D18: 126 | E18: 75 | F18: 72 | G18: 81 | H18: 81 | I18: 87
A19: Noviembre | B19: 1587 | C19: 754 | D19: 237 | E19: 109 | F19: 90 | G19: 121 | H19: 146 | I19: 130
A20: Diciembre | B20: 1266 | C20: 514 | D20: 155 | E20: 136 | F20: 113 | G20: 120 | H20: 112 | I20: 116
A23: Fuente: Sección de Inscripciones del Tribunal Supremo de Elecciones.

Sheet 14
A1: CUADRO 14
A2: COSTA RICA: SOLICITUDES DE CÉDULA RECIBIDAS, POR CLASE DE SOLICITUD
A3: SEGÚN MES, AL 31 DE DICIEMBRE DE 2011
A4: (Absoluto y Porcentaje)
A6: Mes | B6: Clase de solicitud
B7: Absoluto | F7: Porcentaje
B8: Total | C8: Primera vez | D8: Duplicado | E8: Traslado | F8: Total | G8: Primera vez | H8: Duplicado | I8: Traslado
A10: TOTAL | B10: 646922 | C10: 84186 | D10: 562424 | E10: 312 | F10: 100 | G10: 13.01331536 | H10: 86.93845626 | I10: 0.04822837993
A12: Enero | B12: 65994 | C12: 9158 | D12: 56808 | E12: 28 | F12: 100 | G12: 13.87701912 | H12: 86.08055278 | I12: 0.04242809952
A13: Febrero | B13: 56976 | C13: 6297 | D13: 50659 | E13: 20 | F13: 100 | G13: 11.0520219 | H13: 88.9128756 | I13: 0.0351024993
A14: Marzo | B14: 60385 | C14: 6588 | D14: 53774 | E14: 23 | F14: 100 | G14: 10.9099942 | H14: 89.05191687 | I14: 0.03808892937
A15: Abril | B15: 40879 | C15: 5486 | D15: 35386 | E15: 7 | F15: 100 | G15: 13.42009345 | H15: 86.56278285 | I15: 0.01712370655
A16: Mayo | B16: 59938 | C16: 7539 | D16: 52381 | E16: 18 | F16: 100 | G16: 12.57799726 | H16: 87.3919717 | I16: 0.03003103207
A17: Junio | B17: 55036 | C17: 6512 | D17: 48504 | E17: 20 | F17: 100 | G17: 11.83225525 | H17: 88.1314049 | I17: 0.03633985028
A18: Julio | B18: 53146 | C18: 6981 | D18: 46142 | E18: 23 | F18: 100 | G18: 13.13551349 | H18: 86.8212095 | I18: 0.0432770105
A19: Agosto | B19: 56162 | C19: 7161 | D19: 48981 | E19: 20 | F19: 100 | G19: 12.75061429 | H19: 87.21377444 | I19: 0.03561126741
A20: Setiembre | B20: 53670 | C20: 7177 | D20: 46458 | E20: 35 | F20: 100 | G20: 13.37246134 | H20: 86.56232532 | I20: 0.06521334079
A21: Octubre | B21: 52710 | C21: 7466 | D21: 45216 | E21: 28 | F21: 100 | G21: 14.1642952 | H21: 85.78258395 | I21: 0.05312084993
A22: Noviembre | B22: 55636 | C22: 8160 | D22: 47408 | E22: 68 | F22: 100 | G22: 14.66676253 | H22: 85.21101445 | I22: 0.1222230211
A23: Diciembre | B23: 36390 | C23: 5661 | D23: 30707 | E23: 22 | F23: 100 | G23: 15.55647156 | H23: 84.38307227 | I23: 0.06045616928
A26: Fuente: Sección Solicitudes Cedulares y Coordinación de Servicios Regionales del Tribunal Supremo de Elecciones.

Sheet G6
A2: GRÁFICO 6
A3: COSTA RICA: PORCENTAJE DE SOLICITUDES DE CÉDULA RECIBIDAS | J3: SOLICITUDES CEDULARES RECIBIDAS
A4: POR CLASE DE SOLICITUD, AL 31 DE DICIEMBRE DE 2011 | J4: TOTAL | K4: =SUM(K5:K7) -> 646922
J5: Duplicado | K5: 562424 | L5: =K5/K$4*100 -> 86.93845626
J6: Primera vez | K6: 84186 | L6: =K6/K$4*100 -> 13.01331536
J7: Traslado | K7: 312 | L7: =K7/K$4*100 -> 0.04822837993
L8: =SUM(L5:L7) -> 100
J10: Al pasar a imprenta y web, se debe pegar como valores para
J11: romper el vinculo con la tabla de datos
A30: Fuente: Cuadro 14.

Sheet 15
A1: CUADRO 15
A2: COSTA RICA: SOLICITUDES DE CÉDULA RECIBIDAS
A3: POR FUENTE DE INGRESO, SEGÚN MES
A4: AL 31 DE DICIEMBRE DE 2011
A6: Mes | B6: Fuente de ingreso
B7: Total | C7: Oficina central | D7: Oficinas regionales 1/ | E7: Consulados | F7: Cedulación a domicilio | G7: Cedulación ambulante
A9: TOTAL | B9: 646922 | C9: 236010 | D9: 393025 | E9: 5014 | F9: 3761 | G9: 9112
A11: Enero | B11: 65994 | C11: 24557 | D11: 40774 | E11: 366 | F11: 297 | G11: 0
A12: Febrero | B12: 56976 | C12: 20812 | D12: 35480 | E12: 421 | F12: 263 | G12: 0
A13: Marzo | B13: 60385 | C13: 21973 | D13: 37559 | E13: 464 | F13: 359 | G13: 30
A14: Abril | B14: 40879 | C14: 15303 | D14: 25104 | E14: 274 | F14: 198 | G14: 0
A15: Mayo | B15: 59938 | C15: 21547 | D15: 35963 | E15: 666 | F15: 356 | G15: 1406
A16: Junio | B16: 55036 | C16: 20412 | D16: 33796 | E16: 518 | F16: 310 | G16: 0
A17: Julio | B17: 53146 | C17: 19597 | D17: 32119 | E17: 329 | F17: 306 | G17: 795
A18: Agosto | B18: 56162 | C18: 20804 | D18: 34532 | E18: 473 | F18: 353 | G18: 0
A19: Setiembre | B19: 53670 | C19: 18731 | D19: 31613 | E19: 335 | F19: 351 | G19: 2640
A20: Octubre | B20: 52710 | C20: 18571 | D20: 32109 | E20: 600 | F20: 372 | G20: 1058
A21: Noviembre | B21: 55636 | C21: 19583 | D21: 32230 | E21: 299 | F21: 355 | G21: 3169
A22: Diciembre | B22: 36390 | C22: 14120 | D22: 21746 | E22: 269 | F22: 241 | G22: 14
A25: 1/ El Tribunal Supremo de Elecciones cuenta con 32 Oficinas Regionales.
A27: Fuente: Sección Solicitudes Cedulares y Coordinación de Servicios Regionales del Tribunal Supremo de Elecciones.

Sheet G7
A2: GRÁFICO 7
A3: COSTA RICA: PORCENTAJE DE SOLICITUDES DE CÉDULA RECIBIDAS | J3: SOLICITUDES CEDULARES RECIBIDAS
A4: POR FUENTE DE INGRESO, AL 31 DE DICIEMBRE DE 2011 | J4: TOTAL | K4: 646922
J5: Oficinas Regionales | K5: 393025 | L5: 60.75307379
J6: Oficina Central | K6: 236010 | L6: 36.48198701
J7: Cedulación Ambulante | K7: 9112 | L7: 1.408516019
J8: Consulados y domicilio | K8: 8775 | L8: 1.356423185
J11: Chequear que el orden sea de mayor a menor
J14: Al pasar a imprenta y web, se debe pegar como valores para
J15: romper el vinculo con la tabla de datos
A29: Fuente: Cuadro 15.

Sheet 16
A1: CUADRO 16
A2: COSTA RICA: SOLICITUDES DE CÉDULA RECIBIDAS, POR CLASE DE SOLICITUD
A3: SEGÚN PROVINCIA, AL 31 DE DICIEMBRE DE 2011
A4: (Absoluto y Porcentaje)
A6: Provincia | B6: Clase de solicitud
B7: Absoluto | F7: Porcentaje
B8: Total | C8: Primera vez | D8: Duplicado | E8: Traslado | F8: Total | G8: Primera vez | H8: Duplicado | I8: Traslado
A10: Costa Rica | B10: 646922 | C10: 84186 | D10: 562424 | E10: 312 | F10: 100 | G10: 100 | H10: 100 | I10: 100
A12: San José | B12: 277756 | C12: 31172 | D12: 246491 | E12: 93 | F12: 42.93500607 | G12: 37.02753427 | H12: 43.82654368 | I12: 29.80769231
A13: Alajuela | B13: 104941 | C13: 15786 | D13: 89108 | E13: 47 | F13: 16.22158467 | G13: 18.75133633 | H13: 15.84356286 | I13: 15.06410256
A14: Cartago | B14: 51263 | C14: 8081 | D14: 43164 | E14: 18 | F14: 7.924139232 | G14: 9.598983204 | H14: 7.674636929 | I14: 5.769230769
A15: Heredia | B15: 46496 | C15: 6735 | D15: 39698 | E15: 63 | F15: 7.187265234 | G15: 8.000142542 | H15: 7.058375887 | I15: 20.19230769
A16: Guanacaste | B16: 45552 | C16: 6269 | D16: 39270 | E16: 13 | F16: 7.04134347 | G16: 7.446606324 | H16: 6.982276716 | I16: 4.166666667
A17: Puntarenas | B17: 60718 | C17: 8343 | D17: 52303 | E17: 72 | F17: 9.385675553 | G17: 9.910198845 | H17: 9.299567586 | I17: 23.07692308
A18: Limón | B18: 60196 | C18: 7800 | D18: 52390 | E18: 6 | F18: 9.304985763 | G18: 9.265198489 | H18: 9.315036343 | I18: 1.923076923
A21: Fuente: Sección Solicitudes Cedulares y Coordinación de Servicios Regionales del Tribunal Supremo de Elecciones.

Sheet G8
A2: GRÁFICO 8
A3: COSTA RICA: SOLICITUDES DE CÉDULA RECIBIDAS, POR CLASE DE SOLICITUD | L3: PV | M3: DUP | N3: TRASL
A4: SEGÚN PROVINCIA, AL 31 DE DICIEMBRE DE 2011 | K4: San José | L4: 31172 | M4: 246491 | N4: 93
K5: Alajuela | L5: 15786 | M5: 89108 | N5: 47
K6: Limón | L6: 7800 | M6: 52390 | N6: 6
K7: Puntarenas | L7: 8343 | M7: 52303 | N7: 72
K8: Cartago | L8: 8081 | M8: 43164 | N8: 18
K9: Heredia | L9: 6735 | M9: 39698 | N9: 63 | O9: 646922
K10: Guanacaste | L10: 6269 | M10: 39270 | N10: 13
K11: Total | L11: 84186 | M11: 562424 | N11: 312
L13: Duplicado | M13: Primera vez | N13: Traslado
K14: Guanacaste | L14: 39.27 | M14: 6.269 | N14: 0.013
K15: Heredia | L15: 39.698 | M15: 6.735 | N15: 0.063
K16: Cartago | L16: 43.164 | M16: 8.081 | N16: 0.018
K17: Puntarenas | L17: 52.303 | M17: 8.343 | N17: 0.072
K18: Limón | L18: 52.39 | M18: 7.8 | N18: 0.006
K19: Alajuela | L19: 89.108 | M19: 15.786 | N19: 0.047
K20: San José | L20: 246.491 | M20: 31.172 | N20: 0.093
K21: Total | L21: 562.424 | M21: 84.186 | N21: 0.312
A29: Fuente: Cuadro 16.

Sheet 17
A1: CUADRO 17
A2: COSTA RICA: CANTIDAD DE RESOLUCIONES, POR TIPO DE RESOLUCIÓN, SEGÚN MES
A3: AL 31 DE DICIEMBRE DE 2011
A5: Mes | B5: Total | C5: Tipo de resolución
C6: Electorales | D6: Inscripciones | E6: Municipales | F6: Naturalizaciones | G6: Ocursos y Paternidad | H6: Procedimientos
A8: Total | B8: 8691 | C8: 222 | D8: 1312 | E8: 187 | F8: 6231 | G8: 32 | H8: 707
A10: Enero | B10: 780 | C10: 98 | D10: 87 | E10: 12 | F10: 514 | G10: 3 | H10: 66
A11: Febrero | B11: 435 | C11: 9 | D11: 8 | E11: 32 | F11: 344 | G11: 0 | H11: 42
A12: Marzo | B12: 654 | C12: 10 | D12: 68 | E12: 10 | F12: 523 | G12: 0 | H12: 43
A13: Abril | B13: 272 | C13: 6 | D13: 30 | E13: 20 | F13: 181 | G13: 2 | H13: 33
A14: Mayo | B14: 423 | C14: 10 | D14: 51 | E14: 19 | F14: 309 | G14: 6 | H14: 28
A15: Junio | B15: 765 | C15: 11 | D15: 76 | E15: 13 | F15: 440 | G15: 4 | H15: 221
A16: Julio | B16: 672 | C16: 5 | D16: 252 | E16: 13 | F16: 369 | G16: 7 | H16: 26
A17: Agosto | B17: 432 | C17: 14 | D17: 12 | E17: 15 | F17: 337 | G17: 4 | H17: 50
A18: Setiembre | B18: 980 | C18: 19 | D18: 41 | E18: 11 | F18: 816 | G18: 5 | H18: 88
A19: Octubre | B19: 1250 | C19: 12 | D19: 417 | E19: 16 | F19: 772 | G19: 0 | H19: 33
A20: Noviembre | B20: 1197 | C20: 13 | D20: 190 | E20: 17 | F20: 951 | G20: 0 | H20: 26
A21: Diciembre | B21: 831 | C21: 15 | D21: 80 | E21: 9 | F21: 675 | G21: 1 | H21: 51
A24: Fuente: Secretaría del Tribunal Supremo de Elecciones.

Sheet 18
A1: CUADRO 18
A2: COSTA RICA: CANTIDAD DE RESOLUCIONES ELECTORALES
A3: POR ACCIÓN TRAMITADA, SEGÚN MES
A4: AL 31 DE DICIEMBRE DE 2011
A6: Mes | B6: Acción Tramitada
B7: Total | C7: Declaratorias de Elección | D7: Amparo Electoral | E7: Hermenéutica Electoral | F7: Apelación electoral | G7: Denuncia Electoral | H7: Denuncia beligerancia Política | I7: Financiamiento de Partidos Políticos | J7: Otras 1/
A9: Total | B9: 222 | C9: 90 | D9: 28 | E9: 15 | F9: 6 | G9: 22 | H9: 23 | I9: 32 | J9: 6
A11: Enero | B11: 98 | C11: 90 | D11: 0 | E11: 0 | F11: 2 | G11: 3 | H11: 1 | I11: 1 | J11: 1
A12: Febrero | B12: 9 | C12: 0 | D12: 4 | E12: 1 | F12: 1 | G12: 0 | H12: 2 | I12: 1 | J12: 0
A13: Marzo | B13: 10 | C13: 0 | D13: 1 | E13: 1 | F13: 0 | G13: 3 | H13: 3 | I13: 1 | J13: 1
A14: Abril | B14: 6 | C14: 0 | D14: 1 | E14: 3 | F14: 0 | G14: 1 | H14: 0 | I14: 0 | J14: 1
A15: Mayo | B15: 10 | C15: 0 | D15: 0 | E15: 2 | F15: 1 | G15: 0 | H15: 2 | I15: 5 | J15: 0
A16: Junio | B16: 11 | C16: 0 | D16: 0 | E16: 1 | F16: 0 | G16: 3 | H16: 4 | I16: 2 | J16: 1
A17: Julio | B17: 5 | C17: 0 | D17: 1 | E17: 0 | F17: 0 | G17: 1 | H17: 1 | I17: 2 | J17: 0
A18: Agosto | B18: 14 | C18: 0 | D18: 2 | E18: 3 | F18: 0 | G18: 2 | H18: 1 | I18: 4 | J18: 2
A19: Setiembre | B19: 19 | C19: 0 | D19: 4 | E19: 1 | F19: 1 | G19: 1 | H19: 3 | I19: 9 | J19: 0
A20: Octubre | B20: 12 | C20: 0 | D20: 0 | E20: 1 | F20: 0 | G20: 5 | H20: 2 | I20: 4 | J20: 0
A21: Noviembre | B21: 13 | C21: 0 | D21: 8 | E21: 2 | F21: 1 | G21: 0 | H21: 2 | I21: 0 | J21: 0
A22: Diciembre | B22: 15 | C22: 0 | D22: 7 | E22: 0 | F22: 0 | G22: 3 | H22: 2 | I22: 3 | J22: 0
A25: 1/ Incluye cancelación de credenciales de Supremos Poderes, demanda de nulidad y democracia semidirecta.
A27: Fuente: Secretaría del Tribunal Supremo de Elecciones.

Sheet 19
A1: CUADRO 19
A2: COSTA RICA: CANTIDAD DE RESOLUCIONES MUNICIPALES
A3: POR RESULTADO DE LA GESTIÓN, SEGÚN MES
A4: AL 31 DE DICIEMBRE DE 2011
A6: Mes | B6: Resultado de la Gestión
B7: Total | C7: Cancelación de credenciales | D7: Archivo de Expediente | E7: Sin Lugar | F7: Rechazo de plano | G7: Otra 1/
A9: Total | B9: 187 | C9: 120 | D9: 49 | E9: 2 | F9: 12 | G9: 4
A11: Enero | B11: 12 | C11: 7 | D11: 2 | E11: 0 | F11: 2 | G11: 1
A12: Febrero | B12: 32 | C12: 7 | D12: 25 | E12: 0 | F12: 0 | G12: 0
A13: Marzo | B13: 10 | C13: 4 | D13: 5 | E13: 0 | F13: 1 | G13: 0
A14: Abril | B14: 20 | C14: 17 | D14: 1 | E14: 0 | F14: 1 | G14: 1
A15: Mayo | B15: 19 | C15: 17 | D15: 1 | E15: 0 | F15: 1 | G15: 0
A16: Junio | B16: 13 | C16: 10 | D16: 1 | E16: 0 | F16: 1 | G16: 1
A17: Julio | B17: 13 | C17: 9 | D17: 2 | E17: 1 | F17: 1 | G17: 0
A18: Agosto | B18: 15 | C18: 14 | D18: 1 | E18: 0 | F18: 0 | G18: 0
A19: Setiembre | B19: 11 | C19: 7 | D19: 3 | E19: 0 | F19: 1 | G19: 0
A20: Octubre | B20: 16 | C20: 12 | D20: 2 | E20: 0 | F20: 2 | G20: 0
A21: Noviembre | B21: 17 | C21: 11 | D21: 3 | E21: 1 | F21: 1 | G21: 1
A22: Diciembre | B22: 9 | C22: 5 | D22: 3 | E22: 0 | F22: 1 | G22: 0
A25: 1/ Incluye rechazo por improcedente, corrección oficiosa, se concede plazo para asumir o renunciar cargo municipal y rechazo de solicitud de medida cautelar.
A28: Fuente: Secretaría del Tribunal Supremo de Elecciones.

Sheet 20
A1: CUADRO 20
A2: COSTA RICA: TRÁMITES RELACIONADOS CON EL INGRESO DE SOLICITUDES DE
A3: DETERMINACIÓN DE PATERNIDAD1/, POR TIPO, SEGÚN MES
A4: AL 31 DE DICIEMBRE DE 2011
A6: Mes | B6: Ingreso de solicitudes de determinación de paternidad
B7: Total | D7: Paternidad de oficio 2/ | F7: Declaración voluntaria 3/ | H7: Casos enviados a notificar 4/ | J7: Solicitudes prueba de ADN 5/ | L7: Devueltas por el correo 6/ | N7: Información incompleta 7/
A9: Enero | B9: 43763 | D9: 335 | F9: 17034 | H9: 3245 | J9: 15676 | L9: 3913 | N9: 3560
A10: Febrero | B10: 44279 | D10: 335 | F10: 17083 | H10: 3394 | J10: 15936 | L10: 3934 | N10: 3597
A11: Marzo | B11: 44694 | D11: 336 | F11: 17298 | H11: 2999 | J11: 16287 | L11: 4129 | N11: 3645
A12: Abril | B12: 44793 | D12: 353 | F12: 17521 | H12: 2919 | J12: 16441 | L12: 3932 | N12: 3627
A13: Mayo | B13: 45348 | D13: 359 | F13: 17652 | H13: 3060 | J13: 16716 | L13: 3915 | N13: 3646
A14: Junio | B14: 46073 | D14: 392 | F14: 17794 | H14: 3115 | J14: 17033 | L14: 4086 | N14: 3653
A15: Julio | B15: 46399 | D15: 405 | F15: 18022 | H15: 3119 | J15: 17299 | L15: 3903 | N15: 3651
A16: Agosto | B16: 46857 | D16: 405 | F16: 18117 | H16: 3124 | J16: 17624 | L16: 3939 | N16: 3648
A17: Setiembre | B17: 47380 | D17: 429 | F17: 18322 | H17: 2979 | J17: 17991 | L17: 4004 | N17: 3655
A18: Octubre | B18: 47811 | D18: 429 | F18: 18639 | H18: 2955 | J18: 18278 | L18: 3874 | N18: 3636
A19: Noviembre | B19: 48236 | D19: 448 | F19: 18864 | H19: 2921 | J19: 18512 | L19: 3961 | N19: 3530
A20: Diciembre | B20: 48448 | D20: 463 | F20: 19217 | H20: 2710 | J20: 18713 | L20: 3957 | N20: 3388
A23: 1/ Datos acumulados desde que se promulgó la Ley 8101 DE Paternidad Responsable, en abril de 2001.
A25: 2/ Presuntos padres notificados que no se presentan en el término de 10 días y como consecuencia se aplica la paternidad
A26: por presunción.
A28: 3/ Padres que se presentan a firmar, aceptando la paternidad.
A30: 4/ Expedientes ingresados que aún no han sido notificados.
A32: 5/ Casos enviados al laboratorio para realizar la prueba de ADN.
A34: 6/ Citatorios enviados al padre que han sido devueltos por el correo por dirección inexacta.
A36: 7/ Casos de solicitudes en los que no se puede enviar citatorio al padre por no tener nombre y apellidos o dirección inexacta.
A38: Fuente: Sección de Inscripciones del Tribunal Supremo de Elecciones.

Sheet 21
A1: CUADRO 21
A2: COSTA RICA: TRÁMITES DE SOLICITUD DE PRUEBAS DE ADN 1/ POR TIPO DE RESULTADO
A3: DE LA GESTIÓN, SEGÚN MES, AL 31 DE DICIEMBRE DE 2011
A5: Mes | B5: Total de trámites | D5: Resultado de la gestión
D6: Resultado | K6: Pendiente de realizar prueba | T6: Cita pendiente de asignar | V6: Resultados pendientes de entrega
D7: Total | F7: Positivo | H7: Negativo | K7: Total | M7: Padre no se presentó | O7: Madre no se presentó | Q7: Ninguno se presentó
A9: Enero | B9: 15676 | D9: 11009 | F9: 8742 | H9: 2267 | K9: 3590 | M9: 1389 | O9: 1102 | Q9: 1099 | T9: 43 | V9: 1034
A10: Febrero | B10: 15936 | D10: 11239 | F10: 8907 | H10: 2332 | K10: 3667 | M10: 1399 | O10: 1135 | Q10: 1133 | T10: 67 | V10: 963
A11: Marzo | B11: 16287 | D11: 11445 | F11: 9082 | H11: 2363 | K11: 3695 | M11: 1417 | O11: 1140 | Q11: 1138 | T11: 72 | V11: 1075
A12: Abril | B12: 16441 | D12: 11554 | F12: 9179 | H12: 2375 | K12: 3732 | M12: 1434 | O12: 1149 | Q12: 1149 | T12: 48 | V12: 1107
A13: Mayo | B13: 16716 | D13: 11821 | F13: 9368 | H13: 2453 | K13: 3785 | M13: 1464 | O13: 1162 | Q13: 1159 | T13: 14 | V13: 1096
A14: Junio | B14: 17033 | D14: 12117 | F14: 9593 | H14: 2524 | K14: 3824 | M14: 1459 | O14: 1188 | Q14: 1177 | T14: 129 | V14: 963
A15: Julio | B15: 17299 | D15: 12293 | F15: 9732 | H15: 2561 | K15: 3870 | M15: 1469 | O15: 1195 | Q15: 1206 | T15: 127 | V15: 1009
A16: Agosto | B16: 17624 | D16: 12500 | F16: 9892 | H16: 2608 | K16: 3933 | M16: 1492 | O16: 1211 | Q16: 1230 | T16: 23 | V16: 1168
A17: Setiembre | B17: 17991 | D17: 12670 | F17: 10032 | H17: 2638 | K17: 3980 | M17: 1519 | O17: 1228 | Q17: 1233 | T17: 63 | V17: 1278
A18: Octubre | B18: 18278 | D18: 12812 | F18: 10142 | H18: 2670 | K18: 4050 | M18: 1547 | O18: 1243 | Q18: 1260 | T18: 32 | V18: 1384
A19: Noviembre | B19: 18512 | D19: 12955 | F19: 10255 | H19: 2700 | K19: 4096 | M19: 1568 | O19: 1255 | Q19: 1273 | T19: 11 | V19: 1450
A20: Diciembre | B20: 18713 | D20: 13100 | F20: 10364 | H20: 2736 | K20: 4129 | M20: 1583 | O20: 1265 | Q20: 1281 | T20: 93 | V20: 1391
A23: 1/ Casos registrados desde que se promulgó la ley en abril de 2001.
A25: Fuente: Sección de Inscripciones del Tribunal Supremo de Elecciones.

Sheet 22
A1: CUADRO 22
A2: COSTA RICA: RESULTADO DE PRUEBAS DE ADN REALIZADAS 1/
A3: SEGÚN MES, AL 31 DE DICIEMBRE DE 2011
A5: Mes | B5: Total | D5: Absoluto | I5: Porcentaje
D6: Positivo | F6: Negativo | I6: Positivo | K6: Negativo
A8: Enero | B8: 11009 | D8: 8742 | F8: 2267 | I8: 79.40775729 | K8: 20.59224271
A9: Febrero | B9: 11239 | D9: 8907 | F9: 2332 | I9: 79.25082303 | K9: 20.74917697
A10: Marzo | B10: 11445 | D10: 9082 | F10: 2363 | I10: 79.35342945 | K10: 20.64657055
A11: Abril | B11: 11554 | D11: 9179 | F11: 2375 | I11: 79.44434828 | K11: 20.55565172
A12: Mayo | B12: 11821 | D12: 9368 | F12: 2453 | I12: 79.24879452 | K12: 20.75120548
A13: Junio | B13: 12117 | D13: 9593 | F13: 2524 | I13: 79.16976149 | K13: 20.83023851
A14: Julio | B14: 12293 | D14: 9732 | F14: 2561 | I14: 79.16700561 | K14: 20.83299439
A15: Agosto | B15: 12500 | D15: 9892 | F15: 2608 | I15: 79.136 | K15: 20.864
A16: Setiembre | B16: 12670 | D16: 10032 | F16: 2638 | I16: 79.17916338 | K16: 20.82083662
A17: Octubre | B17: 12812 | D17: 10142 | F17: 2670 | I17: 79.16016235 | K17: 20.83983765
A18: Noviembre | B18: 12955 | D18: 10255 | F18: 2700 | I18: 79.15862601 | K18: 20.84137399
A19: Diciembre | B19: 13100 | D19: 10364 | F19: 2736 | I19: 79.11450382 | K19: 20.88549618
A22: 1/ Casos registrados desde que se promulgó la ley en abril de 2001.
A24: Fuente: Sección de Inscripciones del Tribunal Supremo de Elecciones.

Sheet 23
A1: CUADRO 23
A3: COSTA RICA: DONACIONES REPORTADAS PARA EL PROCESO ELECTORAL 2010-20141/
A4: SEGÚN PARTIDO POLÍTICO 2/, AL 31 DE DICIEMBRE DE 2011
A6: PARTIDO POLÍTICO | B6: MONTO EN COLONES | C6: PORCENTAJE
A9: TOTAL | B9: 678928293.7 | C9: 100
A11: ACCESIBILIDAD SIN EXCLUSIÓN | B11: 7670000 | C11: 1.129721662
A12: ACCIÓN CANTONAL SIQUIRRES INDEPENDIENTE | B12: 616000 | C12: 0.09073123123
A13: ACCIÓN CIUDADANA | B13: 31686294.6 | C13: 4.667104744
A14: ACCIÓN NARANJEÑA | B14: 48000 | C14: 0.00706996607
A15: ACCIÓN QUEPEÑA | B15: 220000 | C15: 0.03240401115
A16: ACUERDO CANTONAL DESAMPARADEÑO | B16: 4263500 | C16: 0.6279750071
A17: ALIANZA PATRIÓTICA 3/ | B17: 0 | C17: 0
A18: ALIANZA ZARCEREÑA | B18: 50000 | C18: 0.007364547989
A19: AUTÓNOMO OROMONTANO | B19: 795000 | C19: 0.117096313
A20: BARVA UNIDA (COALICIÓN) | B20: 500000 | C20: 0.07364547989
A21: CARTAGO UNIDO (COALICIÓN) | B21: 2022000 | C21: 0.2978223207
A22: CÍVICO TIBÁS FUENTEOVEJUNA | B22: 370000 | C22: 0.05449765512
A23: CURRIDABAT SIGLO XXI | B23: 970000 | C23: 0.142872231
A24: DEL SOL | B24: 8122809.35 | C24: 1.196416385
A25: EL PUENTE Y LOS CAMINOS DE MORA | B25: 2283140 | C25: 0.3362858819
A26: FRENTE AMPLIO | B26: 82045191.65 | C26: 12.08451502
A27: GOICOCHEA EN ACCIÓN | B27: 1426000 | C27: 0.2100369087
A28: INDEPENDIENTE BELEMITA | B28: 1618000 | C28: 0.2383167729
A29: INTEGRACIÓN BARBAREÑA | B29: 707222.45 | C29: 0.1041674734
A30: INTEGRACIÓN NACIONAL | B30: 59168000 | C30: 8.714911509
A31: LIBERACIÓN NACIONAL | B31: 185162333.8 | C31: 27.27273785
A32: MONTES DE OCA UNIDA (COALICIÓN) | B32: 864000 | C32: 0.1272593893
A33: MOVIMIENTO AVANCE SANTO DOMINGO | B33: 6047080 | C33: 0.8906802171
A34: MOVIMIENTO DE TRABAJADORES Y CAMPESINOS | B34: 2298584.05 | C34: 0.3385606509
A35: MOVIMIENTO LIBERTARIO | B35: 242387620.8 | C35: 35.70150531
A36: ORGANIZACIÓN LABORISTA DE AGUIRRE | B36: 367000 | C36: 0.05405578224
A37: RAMONENSE (COALICIÓN) | B37: 30000 | C37: 0.004418728794
A38: RENOVACIÓN COSTARRICENSE | B38: 1612000 | C38: 0.2374330272
A39: RENOVEMOS ALAJUELA | B39: 30000 | C39: 0.004418728794
A40: RESTAURACIÓN NACIONAL | B40: 7632940 | C40: 1.124263059
A41: ÚNICO ABANGAREÑO | B41: 100000 | C41: 0.01472909598
A42: UNIDAD SOCIAL CRISTIANA | B42: 8324769.25 | C42: 1.226163253
A43: UNIDOS POR SAN CARLOS (COALICIÓN) | B43: 950000 | C43: 0.1399264118
A44: UNIÓN ATENIENSE | B44: 165000 | C44: 0.02430300836
A45: UNIÓN PALMAREÑA | B45: 1509427.77 | C45: 0.222325065
A46: YUNTA PROGRESISTA ESCAZUCEÑA | B46: 16866380 | C46: 2.484265298
A49: 1/ Donaciones recibidas, reportadas por los partidos políticos de marzo 2010 a diciembre 2011.
A51: 2/ Los siguientes Partidos Políticos reportaron no haber recibido donaciones durante el año: Alianza Mayor, Comunal Pro Curri, Humanista de Heredia, Humanista de Montes de Oca, Organización Social Activa, Restauración Alajuelense, Restauración Herediana, Talamanca Unida, Transparencia Cartaginés, Unión Agrícola Cartaginés y Viva Buenos Aires.
A53: 3/ Este partido presentaba un monto total de ¢5 millones, posteriormente remite una nota indicando que por error se envió el reporte dónde había donaciones pero que el dato correspondía a contribuciones de meses anteriores.
A55: Nota: El detalle de los contribuyentes se puede consultar en www.tse.go.cr
A57: Fuente: Departamento de Financiamiento de Partidos Políticos.
